Workbook

Sheet Eingabe und Diagramm
N2: =IF(AB2=1, "Prozess- oder Maschinenfähigkeit", "Short-term process or maschine capability") -> Short-term process or maschine capability | AB2: 2
B4: n | C4: xn | E4: n | F4: xn | H4: n | I4: xn | K4: n | L4: xn | N4: =IF(AB2=1, "Werte können geändert werden", "Value can be changed") -> Value can be changed
B5: 1 | C5: 10.5000 | E5: 51 | H5: 101 | K5: 151 | N5: =IF(AB2=1,"Werte werden berechnet (Blatt Berechnung)","Value will be calculated") -> Value will be calculated
B6: 2 | C6: 10.4000 | E6: 52 | H6: 102 | K6: 152
B7: 3 | C7: 10.6000 | E7: 53 | H7: 103 | K7: 153 | N7: =IF(AB2=1,"Artikelname:","Part name:") -> Part name: | O7: Testartikel1
B8: 4 | C8: 10.4000 | E8: 54 | H8: 104 | K8: 154 | N8: =IF(AB2=1,"Artikel Nr.:","Part no.:") -> Part no.: | O8: Testartikelnummer
B9: 5 | C9: 10.5000 | E9: 55 | H9: 105 | K9: 155 | N9: =IF(AB2=1,"Zeichnungsnr.:","Drawing no.:") -> Drawing no.: | O9: Zeichung 123
B10: 6 | C10: 10.5000 | E10: 56 | H10: 106 | K10: 156 | N10: =IF(AB2=1,"Prüfer:","Inspector:") -> Inspector: | O10: Max Mustermann
B11: 7 | C11: 10.4000 | E11: 57 | H11: 107 | K11: 157 | N11: =IF(AB2=1,"Messmittel:","Measuring device:") -> Measuring device: | O11: Messschieber
B12: 8 | C12: 10.3000 | E12: 58 | H12: 108 | K12: 158 | N12: =IF(AB2=1,"Datum:","Date:") -> Date: | O12: 1990-01-01
B13: 9 | C13: 10.5000 | E13: 59 | H13: 109 | K13: 159 | N13: =IF(AB2=1,"Merkmal:","Attribute:") -> Attribute: | O13: Testmerkmal1
B14: 10 | C14: 10.6000 | E14: 60 | H14: 110 | K14: 160 | N14: =IF(AB2=1,"Maßeinheit:","Measuring unit:") -> Measuring unit: | O14: mm
B15: 11 | C15: 10.4000 | E15: 61 | H15: 111 | K15: 161 | N15: =IF(AB2=1,"Sollwert =","Nominal value =") -> Nominal value = | P15: 11.00000
B16: 12 | C16: 10.5000 | E16: 62 | H16: 112 | K16: 162 | N16: =IF(AB2=1,"Unterer Grenzwert UGW =","Lower spec. limit LSL =") -> Lower spec. limit LSL = | P16: 10.00000
B17: 13 | C17: 10.7000 | E17: 63 | H17: 113 | K17: 163 | N17: =IF(AB2=1,"Oberer Grenzwert OGW =","Upper spec. limit USL =") -> Upper spec. limit USL = | P17: 12.00000
B18: 14 | C18: 10.5000 | E18: 64 | H18: 114 | K18: 164 | N18: =IF(AB2=1,"Anzahl Klassen Histogramm =","Number of classes histogram =") -> Number of classes histogram = | P18: 5
B19: 15 | C19: 10.8000 | E19: 65 | H19: 115 | K19: 165 | N19: Cpk< | O19: 1.33 | P19: Prozess nicht fähig
B20: 16 | C20: 10.6000 | E20: 66 | H20: 116 | K20: 166
B21: 17 | C21: 10.6000 | E21: 67 | H21: 117 | K21: 167
B22: 18 | C22: 10.5000 | E22: 68 | H22: 118 | K22: 168
B23: 19 | C23: 10.3000 | E23: 69 | H23: 119 | K23: 169 | N23: =IF(AB2=1,"Umfang der Stichprobe n","Sample size n") -> Sample size n | P23: =Anzahl -> 26
B24: 20 | C24: 10.4000 | E24: 70 | H24: 120 | K24: 170 | N24: =IF(AB2=1,"Mittelwert µ","mid µ") -> mid µ | P24: =Mittelwert -> 10.50500
B25: 21 | C25: 10.4000 | E25: 71 | H25: 121 | K25: 171 | N25: =IF(AB2=1,"Standardabweichung s","Standart deviation s") -> Standart deviation s | P25: =Standardabweichung -> 0.12621
B26: 22 | C26: 10.6000 | E26: 72 | H26: 122 | K26: 172 | N26: =IF(AB2=1,"Die Werte sind","Values are") -> Values are | P26: =IF(Berechnung!BM20<0.05,IF(AB2=2,"not normal distributed","nicht normalverteilt"),IF(AB2=1,"normalverteilt","normal distributed")) -> normal distributed
B27: 23 | C27: 10.7000 | E27: 73 | H27: 123 | K27: 173
B28: 24 | C28: 10.6000 | E28: 74 | H28: 124 | K28: 174 | N28: Median z | P28: =Median -> 10.5000
B29: 25 | C29: 10.5000 | E29: 75 | H29: 125 | K29: 175 | N29: =IF(AB2=1,"Spannweite R","Range R") -> Range R | P29: =Spannweite -> 0.5000
B30: 26 | C30: 10.3300 | E30: 76 | H30: 126 | K30: 176 | N30: Minimum | P30: =Minimum -> 10.3000
B31: 27 | E31: 77 | H31: 127 | K31: 177 | N31: Maximum | P31: =Maximum -> 10.8000
B32: 28 | E32: 78 | H32: 128 | K32: 178
B33: 29 | E33: 79 | H33: 129 | K33: 179 | N33: =IF(AB2=1,"Fähigkeits kennwerte","Capability indices") -> Capability indices | O33: Cpu/Cmu | P33: =CPU -> 1.33
B34: 30 | E34: 80 | H34: 130 | K34: 180 | O34: Cpo/Cmo | P34: =CPO -> 3.95
B35: 31 | E35: 81 | H35: 131 | K35: 181 | O35: Cp/Cm | P35: =CP -> 2.64
B36: 32 | E36: 82 | H36: 132 | K36: 182 | O36: Cpk/Cmk | P36: =CPK -> 1.33
B37: 33 | E37: 83 | H37: 133 | K37: 183
B38: 34 | E38: 84 | H38: 134 | K38: 184 | N38: Sigma LEVEL = | P38: =sigmalevel -> 4.0
B39: 35 | E39: 85 | H39: 135 | K39: 185 | N39: =IF(AB2=1,"pot. fehlerhafte Teile % =","Potentially bad parts % =") -> Potentially bad parts % = | P39: =anteilnio -> 0.0032%
B40: 36 | E40: 86 | H40: 136 | K40: 186
B41: 37 | E41: 87 | H41: 137 | K41: 187 | N41: =IF(AB2=1,"Berechnete Leistung DPPM","Calculated performance in DPPM") -> Calculated performance in DPPM
B42: 38 | E42: 88 | H42: 138 | K42: 188 | N42: =IF(AB2=1,"Überschreitungs- anteil","Exceedance") -> Exceedance | O42: pUGW | P42: =BERPUGW -> 32
B43: 39 | E43: 89 | H43: 139 | K43: 189 | O43: pOGW | P43: =BERPOGW -> 0
B44: 40 | E44: 90 | H44: 140 | K44: 190 | O44: p | P44: =BERP -> 32
B45: 41 | E45: 91 | H45: 141 | K45: 191
B46: 42 | E46: 92 | H46: 142 | K46: 192 | N46: =IF(AB2=1,"Berechnete Leistung DPPM","Observed performance in DPPM") -> Observed performance in DPPM
B47: 43 | E47: 93 | H47: 143 | K47: 193 | N47: =IF(AB2=1,"Überschreitungs- anteil","Exceedance") -> Exceedance | O47: pUGW | P47: =BEOBPUGW -> 0
B48: 44 | E48: 94 | H48: 144 | K48: 194 | O48: pOGW | P48: =BEOBPOGW -> 0
B49: 45 | E49: 95 | H49: 145 | K49: 195 | O49: p | P49: =BEOBPPM -> 0
B50: 46 | E50: 96 | H50: 146 | K50: 196
B51: 47 | E51: 97 | H51: 147 | K51: 197
B52: 48 | E52: 98 | H52: 148 | K52: 198
B53: 49 | E53: 99 | H53: 149 | K53: 199
B54: 50 | E54: 100 | H54: 150 | K54: 200
AP205: Summe

Sheet Berechnung
N2: Prozess- und Maschinenfähigkeit | AD2: Stichprobe chronologisch | AU2: Wahrscheinlichkeitsnetz | BC2: Test auf Normalverteilung (Anderson Darling)
AQ3: Beobachteter Überschr
B4: i | C4: xi | E4: i | F4: xi | H4: i | I4: xi | K4: i | L4: xi | AD4: Zähler | AE4: X Wert | AF4: Y Wert | AG4: =IF('Eingabe und Diagramm'!AB2=1,"OGW","USL") -> USL | AH4: =IF('Eingabe und Diagramm'!AB2=1,"UGW","LSL") -> LSL | AI4: =" - 1 Sigma" -> - 1 Sigma | AJ4: =" + 1 Sigma" -> + 1 Sigma | AK4: ="- 2 Sigma" -> - 2 Sigma | AL4: =" + 2 Sigma" -> + 2 Sigma | AM4: =" - 3 Sigma" -> - 3 Sigma | AN4: =" + 3 Sigma" -> + 3 Sigma | AO4: =O13 -> mid µ | AQ4: PUGW | AR4: POGW | AV4: u | AW4: x-quer+u∙s | AX4: Helfer | AY4: Fehlerindikator | BC4: i | BD4: xi sortiert | BE4: Zähler | BG4: BG | BI4: S | BJ4: z | BL4: Wert | BM4: z
B5: 1 | C5: =IF('Eingabe und Diagramm'!C5="","",'Eingabe und Diagramm'!C5) -> 10.500 | E5: 51 | F5: =IF('Eingabe und Diagramm'!F5="","",'Eingabe und Diagramm'!F5) ->  | H5: 101 | I5: =IF('Eingabe und Diagramm'!I5="","",'Eingabe und Diagramm'!I5) ->  | K5: 151 | L5: =IF('Eingabe und Diagramm'!L5="","",'Eingabe und Diagramm'!L5) ->  | O5: ='Eingabe und Diagramm'!N12 -> Date: | P5: =Datum -> 1990-01-01 | AD5: 1 | AE5: =IF((Anzahl>AD5),AD5,Anzahl) -> 1 | AF5: =IF(C5<>"",C5,1) -> 10.5 | AG5: =IF(C5<>"",OGW,AG4) -> 12 | AH5: =IF(C5<>"",UGW,AH4) -> 10 | AI5: =Mittelwert-Standardabweichung -> 10.38 | AJ5: =Mittelwert+Standardabweichung -> 10.63 | AK5: =Mittelwert-2*Standardabweichung -> 10.25 | AL5: =Mittelwert+2*Standardabweichung -> 10.76 | AM5: =Mittelwert-3*Standardabweichung -> 10.13 | AN5: =Mittelwert+3*Standardabweichung -> 10.88 | AO5: =Mittelwert -> 10.51 | AQ5: =IF(AND(C5<>"",C5<UGW),1,0) -> 0 | AR5: =IF(AND(C5<>"",C5>OGW),1,0) -> 0 | AV5: -6 | AW5: =Mittelwert+AV5*Standardabweichung -> 9.748 | AX5: 3 | AY5: =AX5*2 -> 6 | AZ5: =AW5 -> 9.748 | BC5: 1 | BD5: =IF(C5="",NA(),SMALL(xi,BE5)) -> 10.300 | BE5: =IF(C5="","",1) -> 1 | BF5: =IF(C5="","",NORMSDIST((BD5-Mittelwert)/Standardabweichung)) -> 0.0522 | BG5: =IF(C5="","",1-BF5) -> 0.9478 | BH5: =IF(C5="","",SMALL(BG,BE5)) -> 0.0097 | BI5: =IF(C5="","",(2*BE5-1)*(LN(BH5)+LN(BF5))) -> -7.5878 | BJ5: =IF(C5="",NA(),NORMSINV((BE5-0.3)/(Anzahl+0.4))) -> -1.9347 | BL5: =Standardabweichung*BM5+Mittelwert -> 10.8836 | BM5: 3
B6: 2 | C6: =IF('Eingabe und Diagramm'!C6="","",'Eingabe und Diagramm'!C6) -> 10.400 | E6: 52 | F6: =IF('Eingabe und Diagramm'!F6="","",'Eingabe und Diagramm'!F6) ->  | H6: 102 | I6: =IF('Eingabe und Diagramm'!I6="","",'Eingabe und Diagramm'!I6) ->  | K6: 152 | L6: =IF('Eingabe und Diagramm'!L6="","",'Eingabe und Diagramm'!L6) ->  | O6: ='Eingabe und Diagramm'!N13 -> Attribute: | P6: =Merkmal -> Testmerkmal1 | AD6: 2 | AE6: 2 | AF6: =IF(C6<>"",C6,AG5) -> 10.4 | AG6: 12 | AH6: 10 | AI6: =AI5 -> 10.38 | AJ6: 10.63 | AK6: 10.25 | AL6: 10.76 | AM6: 10.13 | AN6: 10.88 | AO6: 10.51 | AQ6: 0 | AR6: 0 | AV6: -5 | AW6: 9.874 | AX6: 3 | AY6: =AX6*2 -> 6 | AZ6: =AZ5 -> 9.748 | BC6: 2 | BD6: 10.300 | BE6: =IF(C6="","",1+BE5) -> 2 | BF6: 0.0522 | BG6: 0.9478 | BH6: 0.0612 | BI6: -17.2422 | BJ6: -1.5189 | BL6: =Standardabweichung*BM6+Mittelwert -> 10.5050 | BM6: 0
B7: 3 | C7: =IF('Eingabe und Diagramm'!C7="","",'Eingabe und Diagramm'!C7) -> 10.600 | E7: 53 | F7: =IF('Eingabe und Diagramm'!F7="","",'Eingabe und Diagramm'!F7) ->  | H7: 103 | I7: =IF('Eingabe und Diagramm'!I7="","",'Eingabe und Diagramm'!I7) ->  | K7: 153 | L7: =IF('Eingabe und Diagramm'!L7="","",'Eingabe und Diagramm'!L7) ->  | O7: ='Eingabe und Diagramm'!N14 -> Measuring unit: | P7: =Maßeinheit -> mm | AD7: 3 | AE7: 3 | AF7: =IF(C7<>"",C7,AG6) -> 10.6 | AG7: 12 | AH7: 10 | AI7: 10.38 | AJ7: 10.63 | AK7: 10.25 | AL7: 10.76 | AM7: 10.13 | AN7: 10.88 | AO7: 10.51 | AQ7: 0 | AR7: 0 | AV7: -4 | AW7: 10.000 | AX7: 3 | AY7: 6 | AZ7: =AZ6 -> 9.748 | BC7: 3 | BD7: 10.330 | BE7: 3 | BF7: 0.0828 | BG7: 0.9172 | BH7: 0.0612 | BI7: -26.4273 | BJ7: -1.2687 | BL7: =Standardabweichung*BM7+Mittelwert -> 10.1264 | BM7: -3
B8: 4 | C8: =IF('Eingabe und Diagramm'!C8="","",'Eingabe und Diagramm'!C8) -> 10.400 | E8: 54 | F8: =IF('Eingabe und Diagramm'!F8="","",'Eingabe und Diagramm'!F8) ->  | H8: 104 | I8: =IF('Eingabe und Diagramm'!I8="","",'Eingabe und Diagramm'!I8) ->  | K8: 154 | L8: =IF('Eingabe und Diagramm'!L8="","",'Eingabe und Diagramm'!L8) ->  | O8: ='Eingabe und Diagramm'!N15 -> Nominal value = | P8: =Sollwert -> 11.00 | AD8: 4 | AE8: 4 | AF8: =IF(C8<>"",C8,AF7) -> 10.4 | AG8: 12 | AH8: 10 | AI8: 10.38 | AJ8: 10.63 | AK8: 10.25 | AL8: 10.76 | AM8: 10.13 | AN8: 10.88 | AO8: 10.51 | AQ8: 0 | AR8: 0 | AV8: -2 | AW8: 10.253 | AX8: 3 | AY8: 6 | AZ8: 9.748 | BC8: 4 | BD8: 10.400 | BE8: 4 | BF8: 0.2027 | BG8: 0.7973 | BH8: 0.2258 | BI8: -21.5874 | BJ8: -1.0796
B9: 5 | C9: =IF('Eingabe und Diagramm'!C9="","",'Eingabe und Diagramm'!C9) -> 10.500 | E9: 55 | F9: =IF('Eingabe und Diagramm'!F9="","",'Eingabe und Diagramm'!F9) ->  | H9: 105 | I9: =IF('Eingabe und Diagramm'!I9="","",'Eingabe und Diagramm'!I9) ->  | K9: 155 | L9: =IF('Eingabe und Diagramm'!L9="","",'Eingabe und Diagramm'!L9) ->  | O9: ='Eingabe und Diagramm'!N16 -> Lower spec. limit LSL = | P9: =UGW -> 10.00 | AD9: 5 | AE9: 5 | AF9: 10.5 | AG9: 12 | AH9: 10 | AI9: 10.38 | AJ9: 10.63 | AK9: 10.25 | AL9: 10.76 | AM9: 10.13 | AN9: 10.88 | AO9: 10.51 | AQ9: 0 | AR9: 0 | AV9: -1 | AW9: 10.379 | AX9: 3 | AY9: 6 | AZ9: 9.748 | BC9: 5 | BD9: 10.400 | BE9: 5 | BF9: 0.2027 | BG9: 0.7973 | BH9: 0.2258 | BI9: -27.7553 | BJ9: -0.9229
B10: 6 | C10: =IF('Eingabe und Diagramm'!C10="","",'Eingabe und Diagramm'!C10) -> 10.500 | E10: 56 | F10: =IF('Eingabe und Diagramm'!F10="","",'Eingabe und Diagramm'!F10) ->  | H10: 106 | I10: =IF('Eingabe und Diagramm'!I10="","",'Eingabe und Diagramm'!I10) ->  | K10: 156 | L10: =IF('Eingabe und Diagramm'!L10="","",'Eingabe und Diagramm'!L10) ->  | O10: ='Eingabe und Diagramm'!N17 -> Upper spec. limit USL = | P10: =OGW -> 12.00 | AD10: 6 | AE10: 6 | AF10: 10.5 | AG10: 12 | AH10: 10 | AI10: 10.38 | AJ10: 10.63 | AK10: 10.25 | AL10: 10.76 | AM10: 10.13 | AN10: 10.88 | AO10: 10.51 | AQ10: 0 | AR10: 0 | AV10: 1 | AW10: 10.631 | AX10: 3 | AY10: 6 | AZ10: 9.748 | BC10: 6 | BD10: 10.400 | BE10: 6 | BF10: 0.2027 | BG10: 0.7973 | BH10: 0.2258 | BI10: -33.9231 | BJ10: -0.7861 | BL10: Summe S | BM10: =SUM(Normalverteilung_S) -> -694
B11: 7 | C11: =IF('Eingabe und Diagramm'!C11="","",'Eingabe und Diagramm'!C11) -> 10.400 | E11: 57 | F11: =IF('Eingabe und Diagramm'!F11="","",'Eingabe und Diagramm'!F11) ->  | H11: 107 | I11: =IF('Eingabe und Diagramm'!I11="","",'Eingabe und Diagramm'!I11) ->  | K11: 157 | L11: =IF('Eingabe und Diagramm'!L11="","",'Eingabe und Diagramm'!L11) ->  | AD11: 7 | AE11: 7 | AF11: 10.4 | AG11: 12 | AH11: 10 | AI11: 10.38 | AJ11: 10.63 | AK11: 10.25 | AL11: 10.76 | AM11: 10.13 | AN11: 10.88 | AO11: 10.51 | AQ11: 0 | AR11: 0 | AV11: 2 | AW11: 10.757 | AX11: 3 | AY11: 6 | AZ11: 9.748 | BC11: 7 | BD11: 10.400 | BE11: 7 | BF11: 0.2027 | BG11: 0.7973 | BH11: 0.2258 | BI11: -40.0909 | BJ11: -0.6626 | BL11: AD | BM11: =-BM10/Anzahl-Anzahl -> 0.6783
B12: 8 | C12: =IF('Eingabe und Diagramm'!C12="","",'Eingabe und Diagramm'!C12) -> 10.300 | E12: 58 | F12: =IF('Eingabe und Diagramm'!F12="","",'Eingabe und Diagramm'!F12) ->  | H12: 108 | I12: =IF('Eingabe und Diagramm'!I12="","",'Eingabe und Diagramm'!I12) ->  | K12: 158 | L12: =IF('Eingabe und Diagramm'!L12="","",'Eingabe und Diagramm'!L12) ->  | O12: ='Eingabe und Diagramm'!N23 -> Sample size n | P12: =COUNT(C5:C204) -> 26 | AD12: 8 | AE12: 8 | AF12: 10.3 | AG12: 12 | AH12: 10 | AI12: 10.38 | AJ12: 10.63 | AK12: 10.25 | AL12: 10.76 | AM12: 10.13 | AN12: 10.88 | AO12: 10.51 | AQ12: 0 | AR12: 0 | AV12: 4 | AW12: 11.010 | AX12: 3 | AY12: 6 | AZ12: 9.748 | BC12: 8 | BD12: 10.400 | BE12: 8 | BF12: 0.2027 | BG12: 0.7973 | BH12: 0.2258 | BI12: -46.2588 | BJ12: -0.5485 | BL12: AD* | BM12: =BM11*(1+0.75/Anzahl+2.25/Anzahl^2) -> 0.7001
B13: 9 | C13: =IF('Eingabe und Diagramm'!C13="","",'Eingabe und Diagramm'!C13) -> 10.500 | E13: 59 | F13: =IF('Eingabe und Diagramm'!F13="","",'Eingabe und Diagramm'!F13) ->  | H13: 109 | I13: =IF('Eingabe und Diagramm'!I13="","",'Eingabe und Diagramm'!I13) ->  | K13: 159 | L13: =IF('Eingabe und Diagramm'!L13="","",'Eingabe und Diagramm'!L13) ->  | O13: ='Eingabe und Diagramm'!N24 -> mid µ | P13: =AVERAGE(C5:C204) -> 10.51 | AD13: 9 | AE13: 9 | AF13: 10.5 | AG13: 12 | AH13: 10 | AI13: 10.38 | AJ13: 10.63 | AK13: 10.25 | AL13: 10.76 | AM13: 10.13 | AN13: 10.88 | AO13: 10.51 | AQ13: 0 | AR13: 0 | AV13: 5 | AW13: 11.136 | AX13: 3 | AY13: 6 | AZ13: 9.748 | BC13: 9 | BD13: 10.400 | BE13: 9 | BF13: 0.2027 | BG13: 0.7973 | BH13: 0.2258 | BI13: -52.4266 | BJ13: -0.4412
B14: 10 | C14: =IF('Eingabe und Diagramm'!C14="","",'Eingabe und Diagramm'!C14) -> 10.600 | E14: 60 | F14: =IF('Eingabe und Diagramm'!F14="","",'Eingabe und Diagramm'!F14) ->  | H14: 110 | I14: =IF('Eingabe und Diagramm'!I14="","",'Eingabe und Diagramm'!I14) ->  | K14: 160 | L14: =IF('Eingabe und Diagramm'!L14="","",'Eingabe und Diagramm'!L14) ->  | O14: ='Eingabe und Diagramm'!N25 -> Standart deviation s | P14: =STDEV(C5:C204) -> 0.13 | AD14: 10 | AE14: 10 | AF14: 10.6 | AG14: 12 | AH14: 10 | AI14: 10.38 | AJ14: 10.63 | AK14: 10.25 | AL14: 10.76 | AM14: 10.13 | AN14: 10.88 | AO14: 10.51 | AQ14: 0 | AR14: 0 | AV14: 6 | AW14: 11.262 | AX14: 3 | AY14: 6 | AZ14: 9.748 | BC14: 10 | BD14: 10.500 | BE14: 10 | BF14: 0.4842 | BG14: 0.5158 | BH14: 0.5158 | BI14: -26.3586 | BJ14: -0.3387
B15: 11 | C15: =IF('Eingabe und Diagramm'!C15="","",'Eingabe und Diagramm'!C15) -> 10.400 | E15: 61 | F15: =IF('Eingabe und Diagramm'!F15="","",'Eingabe und Diagramm'!F15) ->  | H15: 111 | I15: =IF('Eingabe und Diagramm'!I15="","",'Eingabe und Diagramm'!I15) ->  | K15: 161 | L15: =IF('Eingabe und Diagramm'!L15="","",'Eingabe und Diagramm'!L15) ->  | AD15: 11 | AE15: 11 | AF15: 10.4 | AG15: 12 | AH15: 10 | AI15: 10.38 | AJ15: 10.63 | AK15: 10.25 | AL15: 10.76 | AM15: 10.13 | AN15: 10.88 | AO15: 10.51 | AQ15: 0 | AR15: 0 | AV15: -3 | AW15: 10.126 | AX15: 3 | AY15: 6 | AZ15: 9.748 | BC15: 11 | BD15: 10.500 | BE15: 11 | BF15: 0.4842 | BG15: 0.5158 | BH15: 0.5158 | BI15: -29.1332 | BJ15: -0.2396 | BL15: p1 | BM15: =IF(AND(BM12<13, BM12>=0.6),EXP(1.2937-5.709*BM12+0.0186*BM12^ 2),0) -> 0.0676
B16: 12 | C16: =IF('Eingabe und Diagramm'!C16="","",'Eingabe und Diagramm'!C16) -> 10.500 | E16: 62 | F16: =IF('Eingabe und Diagramm'!F16="","",'Eingabe und Diagramm'!F16) ->  | H16: 112 | I16: =IF('Eingabe und Diagramm'!I16="","",'Eingabe und Diagramm'!I16) ->  | K16: 162 | L16: =IF('Eingabe und Diagramm'!L16="","",'Eingabe und Diagramm'!L16) ->  | O16: ='Eingabe und Diagramm'!$N$33 -> Capability indices | AD16: 12 | AE16: 12 | AF16: 10.5 | AG16: 12 | AH16: 10 | AI16: 10.38 | AJ16: 10.63 | AK16: 10.25 | AL16: 10.76 | AM16: 10.13 | AN16: 10.88 | AO16: 10.51 | AQ16: 0 | AR16: 0 | AV16: 3 | AW16: 10.884 | AX16: 3 | AY16: 6 | AZ16: 9.748 | BC16: 12 | BD16: 10.500 | BE16: 12 | BF16: 0.4842 | BG16: 0.5158 | BH16: 0.5158 | BI16: -31.9077 | BJ16: -0.1429 | BL16: p2 | BM16: =IF(AND(BM12<0.6,BM12>=0.34),EXP(0.9177-4.279*BM12-1.38*BM12^2),0) -> 0.0000
B17: 13 | C17: =IF('Eingabe und Diagramm'!C17="","",'Eingabe und Diagramm'!C17) -> 10.700 | E17: 63 | F17: =IF('Eingabe und Diagramm'!F17="","",'Eingabe und Diagramm'!F17) ->  | H17: 113 | I17: =IF('Eingabe und Diagramm'!I17="","",'Eingabe und Diagramm'!I17) ->  | K17: 163 | L17: =IF('Eingabe und Diagramm'!L17="","",'Eingabe und Diagramm'!L17) ->  | O17: Cpu | P17: =(P13-P9)/(3*P14) -> 1.33 | AD17: 13 | AE17: 13 | AF17: 10.7 | AG17: 12 | AH17: 10 | AI17: 10.38 | AJ17: 10.63 | AK17: 10.25 | AL17: 10.76 | AM17: 10.13 | AN17: 10.88 | AO17: 10.51 | AQ17: 0 | AR17: 0 | BC17: 13 | BD17: 10.500 | BE17: 13 | BF17: 0.4842 | BG17: 0.5158 | BH17: 0.5158 | BI17: -34.6823 | BJ17: -0.0475 | BL17: p3 | BM17: =IF(AND(BM12<0.34,BM12>=0.2),1-EXP(-8.318+42.796*BM12-59.938*BM12^2),0) -> 0.0000
B18: 14 | C18: =IF('Eingabe und Diagramm'!C18="","",'Eingabe und Diagramm'!C18) -> 10.500 | E18: 64 | F18: =IF('Eingabe und Diagramm'!F18="","",'Eingabe und Diagramm'!F18) ->  | H18: 114 | I18: =IF('Eingabe und Diagramm'!I18="","",'Eingabe und Diagramm'!I18) ->  | K18: 164 | L18: =IF('Eingabe und Diagramm'!L18="","",'Eingabe und Diagramm'!L18) ->  | O18: Cpo | P18: =(P10-P13)/(3*P14) -> 3.95 | AD18: 14 | AE18: 14 | AF18: 10.5 | AG18: 12 | AH18: 10 | AI18: 10.38 | AJ18: 10.63 | AK18: 10.25 | AL18: 10.76 | AM18: 10.13 | AN18: 10.88 | AO18: 10.51 | AQ18: 0 | AR18: 0 | AV18: Mittelwert | AW18: =Mittelwert -> 10.505 | AX18: 3 | BC18: 14 | BD18: 10.500 | BE18: 14 | BF18: 0.4842 | BG18: 0.5158 | BH18: 0.5158 | BI18: -37.4569 | BJ18: 0.0475 | BL18: p4 | BM18: =IF(BM12<0.2,1-EXP(-13.436+101.14*BM12-223.73*BM12^2),0) -> 0.0000
B19: 15 | C19: =IF('Eingabe und Diagramm'!C19="","",'Eingabe und Diagramm'!C19) -> 10.800 | E19: 65 | F19: =IF('Eingabe und Diagramm'!F19="","",'Eingabe und Diagramm'!F19) ->  | H19: 115 | I19: =IF('Eingabe und Diagramm'!I19="","",'Eingabe und Diagramm'!I19) ->  | K19: 165 | L19: =IF('Eingabe und Diagramm'!L19="","",'Eingabe und Diagramm'!L19) ->  | O19: Cp | P19: =(P10-P9)/(6*P14) -> 2.64 | AD19: 15 | AE19: 15 | AF19: 10.8 | AG19: 12 | AH19: 10 | AI19: 10.38 | AJ19: 10.63 | AK19: 10.25 | AL19: 10.76 | AM19: 10.13 | AN19: 10.88 | AO19: 10.51 | AQ19: 0 | AR19: 0 | AV19: OGW | AW19: =OGW -> 12.000 | AX19: 3 | BC19: 15 | BD19: 10.500 | BE19: 15 | BF19: 0.4842 | BG19: 0.5158 | BH19: 0.5158 | BI19: -40.2315 | BJ19: 0.1429
B20: 16 | C20: =IF('Eingabe und Diagramm'!C20="","",'Eingabe und Diagramm'!C20) -> 10.600 | E20: 66 | F20: =IF('Eingabe und Diagramm'!F20="","",'Eingabe und Diagramm'!F20) ->  | H20: 116 | I20: =IF('Eingabe und Diagramm'!I20="","",'Eingabe und Diagramm'!I20) ->  | K20: 166 | L20: =IF('Eingabe und Diagramm'!L20="","",'Eingabe und Diagramm'!L20) ->  | O20: Cpk | P20: =MIN(P18,P17) -> 1.33 | AD20: 16 | AE20: 16 | AF20: 10.6 | AG20: 12 | AH20: 10 | AI20: 10.38 | AJ20: 10.63 | AK20: 10.25 | AL20: 10.76 | AM20: 10.13 | AN20: 10.88 | AO20: 10.51 | AQ20: 0 | AR20: 0 | AV20: UGW | AW20: =UGW -> 10.000 | AX20: 3 | BC20: 16 | BD20: 10.500 | BE20: 16 | BF20: 0.4842 | BG20: 0.5158 | BH20: 0.5158 | BI20: -43.0061 | BJ20: 0.2396 | BL20: p Wert | BM20: =MAX(BM15:BM18) -> 0.0676
B21: 17 | C21: =IF('Eingabe und Diagramm'!C21="","",'Eingabe und Diagramm'!C21) -> 10.600 | E21: 67 | F21: =IF('Eingabe und Diagramm'!F21="","",'Eingabe und Diagramm'!F21) ->  | H21: 117 | I21: =IF('Eingabe und Diagramm'!I21="","",'Eingabe und Diagramm'!I21) ->  | K21: 167 | L21: =IF('Eingabe und Diagramm'!L21="","",'Eingabe und Diagramm'!L21) ->  | AD21: 17 | AE21: 17 | AF21: 10.6 | AG21: 12 | AH21: 10 | AI21: 10.38 | AJ21: 10.63 | AK21: 10.25 | AL21: 10.76 | AM21: 10.13 | AN21: 10.88 | AO21: 10.51 | AQ21: 0 | AR21: 0 | AV21: Sollwert | AW21: =Sollwert -> 11.000 | AX21: 3 | BC21: 17 | BD21: 10.500 | BE21: 17 | BF21: 0.4842 | BG21: 0.5158 | BH21: 0.5158 | BI21: -45.7807 | BJ21: 0.3387
B22: 18 | C22: =IF('Eingabe und Diagramm'!C22="","",'Eingabe und Diagramm'!C22) -> 10.500 | E22: 68 | F22: =IF('Eingabe und Diagramm'!F22="","",'Eingabe und Diagramm'!F22) ->  | H22: 118 | I22: =IF('Eingabe und Diagramm'!I22="","",'Eingabe und Diagramm'!I22) ->  | K22: 168 | L22: =IF('Eingabe und Diagramm'!L22="","",'Eingabe und Diagramm'!L22) ->  | O22: ='Eingabe und Diagramm'!N28 -> Median z | P22: =MEDIAN(xi) -> 10.50 | AD22: 18 | AE22: =IF((Anzahl>AD22),AD22,Anzahl) -> 18 | AF22: 10.5 | AG22: 12 | AH22: 10 | AI22: =AI21 -> 10.38 | AJ22: 10.63 | AK22: 10.25 | AL22: 10.76 | AM22: 10.13 | AN22: 10.88 | AO22: 10.51 | AQ22: 0 | AR22: 0 | BC22: 18 | BD22: 10.600 | BE22: 18 | BF22: 0.7742 | BG22: 0.2258 | BH22: 0.7973 | BI22: -16.8877 | BJ22: 0.4412
B23: 19 | C23: =IF('Eingabe und Diagramm'!C23="","",'Eingabe und Diagramm'!C23) -> 10.300 | E23: 69 | F23: =IF('Eingabe und Diagramm'!F23="","",'Eingabe und Diagramm'!F23) ->  | H23: 119 | I23: =IF('Eingabe und Diagramm'!I23="","",'Eingabe und Diagramm'!I23) ->  | K23: 169 | L23: =IF('Eingabe und Diagramm'!L23="","",'Eingabe und Diagramm'!L23) ->  | O23: ='Eingabe und Diagramm'!N29 -> Range R | P23: =Maximum-Minimum -> 0.50 | AD23: 19 | AE23: 19 | AF23: 10.3 | AG23: 12 | AH23: 10 | AI23: 10.38 | AJ23: 10.63 | AK23: 10.25 | AL23: 10.76 | AM23: 10.13 | AN23: 10.88 | AO23: 10.51 | AQ23: 0 | AR23: 0 | BC23: 19 | BD23: 10.600 | BE23: 19 | BF23: 0.7742 | BG23: 0.2258 | BH23: 0.7973 | BI23: -17.8528 | BJ23: 0.5485
B24: 20 | C24: =IF('Eingabe und Diagramm'!C24="","",'Eingabe und Diagramm'!C24) -> 10.400 | E24: 70 | F24: =IF('Eingabe und Diagramm'!F24="","",'Eingabe und Diagramm'!F24) ->  | H24: 120 | I24: =IF('Eingabe und Diagramm'!I24="","",'Eingabe und Diagramm'!I24) ->  | K24: 170 | L24: =IF('Eingabe und Diagramm'!L24="","",'Eingabe und Diagramm'!L24) ->  | O24: ='Eingabe und Diagramm'!N30 -> Minimum | P24: =MIN(xi) -> 10.30 | AD24: 20 | AE24: 20 | AF24: 10.4 | AG24: 12 | AH24: 10 | AI24: 10.38 | AJ24: 10.63 | AK24: 10.25 | AL24: 10.76 | AM24: 10.13 | AN24: 10.88 | AO24: 10.51 | AQ24: 0 | AR24: 0 | BC24: 20 | BD24: 10.600 | BE24: 20 | BF24: 0.7742 | BG24: 0.2258 | BH24: 0.7973 | BI24: -18.8178 | BJ24: 0.6626
B25: 21 | C25: =IF('Eingabe und Diagramm'!C25="","",'Eingabe und Diagramm'!C25) -> 10.400 | E25: 71 | F25: =IF('Eingabe und Diagramm'!F25="","",'Eingabe und Diagramm'!F25) ->  | H25: 121 | I25: =IF('Eingabe und Diagramm'!I25="","",'Eingabe und Diagramm'!I25) ->  | K25: 171 | L25: =IF('Eingabe und Diagramm'!L25="","",'Eingabe und Diagramm'!L25) ->  | O25: ='Eingabe und Diagramm'!N31 -> Maximum | P25: =MAX(xi) -> 10.80 | AD25: 21 | AE25: 21 | AF25: 10.4 | AG25: 12 | AH25: 10 | AI25: 10.38 | AJ25: 10.63 | AK25: 10.25 | AL25: 10.76 | AM25: 10.13 | AN25: 10.88 | AO25: 10.51 | AQ25: 0 | AR25: 0 | BC25: 21 | BD25: 10.600 | BE25: 21 | BF25: 0.7742 | BG25: 0.2258 | BH25: 0.7973 | BI25: -19.7828 | BJ25: 0.7861
B26: 22 | C26: =IF('Eingabe und Diagramm'!C26="","",'Eingabe und Diagramm'!C26) -> 10.600 | E26: 72 | F26: =IF('Eingabe und Diagramm'!F26="","",'Eingabe und Diagramm'!F26) ->  | H26: 122 | I26: =IF('Eingabe und Diagramm'!I26="","",'Eingabe und Diagramm'!I26) ->  | K26: 172 | L26: =IF('Eingabe und Diagramm'!L26="","",'Eingabe und Diagramm'!L26) ->  | AD26: 22 | AE26: 22 | AF26: 10.6 | AG26: 12 | AH26: 10 | AI26: 10.38 | AJ26: 10.63 | AK26: 10.25 | AL26: 10.76 | AM26: 10.13 | AN26: 10.88 | AO26: 10.51 | AQ26: 0 | AR26: 0 | BC26: 22 | BD26: 10.600 | BE26: 22 | BF26: 0.7742 | BG26: 0.2258 | BH26: 0.7973 | BI26: -20.7478 | BJ26: 0.9229
B27: 23 | C27: =IF('Eingabe und Diagramm'!C27="","",'Eingabe und Diagramm'!C27) -> 10.700 | E27: 73 | F27: =IF('Eingabe und Diagramm'!F27="","",'Eingabe und Diagramm'!F27) ->  | H27: 123 | I27: =IF('Eingabe und Diagramm'!I27="","",'Eingabe und Diagramm'!I27) ->  | K27: 173 | L27: =IF('Eingabe und Diagramm'!L27="","",'Eingabe und Diagramm'!L27) ->  | P27: Berechnete Leistung in DPPM | AD27: 23 | AE27: 23 | AF27: 10.7 | AG27: 12 | AH27: 10 | AI27: 10.38 | AJ27: 10.63 | AK27: 10.25 | AL27: 10.76 | AM27: 10.13 | AN27: 10.88 | AO27: 10.51 | AQ27: 0 | AR27: 0 | BC27: 23 | BD27: 10.600 | BE27: 23 | BF27: 0.7742 | BG27: 0.2258 | BH27: 0.7973 | BI27: -21.7128 | BJ27: 1.0796
B28: 24 | C28: =IF('Eingabe und Diagramm'!C28="","",'Eingabe und Diagramm'!C28) -> 10.600 | E28: 74 | F28: =IF('Eingabe und Diagramm'!F28="","",'Eingabe und Diagramm'!F28) ->  | H28: 124 | I28: =IF('Eingabe und Diagramm'!I28="","",'Eingabe und Diagramm'!I28) ->  | K28: 174 | L28: =IF('Eingabe und Diagramm'!L28="","",'Eingabe und Diagramm'!L28) ->  | O28: Überschreitungsanteil pUGW | P28: =NORMDIST(UGW,Mittelwert,Standardabweichung,1)*1000000 -> 32 | AD28: 24 | AE28: 24 | AF28: 10.6 | AG28: 12 | AH28: 10 | AI28: 10.38 | AJ28: 10.63 | AK28: 10.25 | AL28: 10.76 | AM28: 10.13 | AN28: 10.88 | AO28: 10.51 | AQ28: 0 | AR28: 0 | BC28: 24 | BD28: 10.700 | BE28: 24 | BF28: 0.9388 | BG28: 0.0612 | BH28: 0.9172 | BI28: -7.0287 | BJ28: 1.2687
B29: 25 | C29: =IF('Eingabe und Diagramm'!C29="","",'Eingabe und Diagramm'!C29) -> 10.500 | E29: 75 | F29: =IF('Eingabe und Diagramm'!F29="","",'Eingabe und Diagramm'!F29) ->  | H29: 125 | I29: =IF('Eingabe und Diagramm'!I29="","",'Eingabe und Diagramm'!I29) ->  | K29: 175 | L29: =IF('Eingabe und Diagramm'!L29="","",'Eingabe und Diagramm'!L29) ->  | O29: Überschreitungsanteil pOGW | P29: =(1-NORMDIST(OGW,Mittelwert,Standardabweichung,1))*1000000 -> 0 | R29: =((R33)+(R35)) -> 0.0032% | AD29: 25 | AE29: 25 | AF29: 10.5 | AG29: 12 | AH29: 10 | AI29: 10.38 | AJ29: 10.63 | AK29: 10.25 | AL29: 10.76 | AM29: 10.13 | AN29: 10.88 | AO29: 10.51 | AQ29: 0 | AR29: 0 | BC29: 25 | BD29: 10.700 | BE29: 25 | BF29: 0.9388 | BG29: 0.0612 | BH29: 0.9478 | BI29: -5.7182 | BJ29: 1.5189
B30: 26 | C30: =IF('Eingabe und Diagramm'!C30="","",'Eingabe und Diagramm'!C30) -> 10.330 | E30: 76 | F30: =IF('Eingabe und Diagramm'!F30="","",'Eingabe und Diagramm'!F30) ->  | H30: 126 | I30: =IF('Eingabe und Diagramm'!I30="","",'Eingabe und Diagramm'!I30) ->  | K30: 176 | L30: =IF('Eingabe und Diagramm'!L30="","",'Eingabe und Diagramm'!L30) ->  | O30: Überschreitungsanteil p | P30: =BERPOGW+BERPUGW -> 32 | AD30: 26 | AE30: 26 | AF30: 10.33 | AG30: 12 | AH30: 10 | AI30: 10.38 | AJ30: 10.63 | AK30: 10.25 | AL30: 10.76 | AM30: 10.13 | AN30: 10.88 | AO30: 10.51 | AQ30: 0 | AR30: 0 | BC30: 26 | BD30: 10.800 | BE30: 26 | BF30: 0.9903 | BG30: 0.0097 | BH30: 0.9478 | BI30: -3.2300 | BJ30: 1.9347
B31: 27 | C31: =IF('Eingabe und Diagramm'!C31="","",'Eingabe und Diagramm'!C31) ->  | E31: 77 | F31: =IF('Eingabe und Diagramm'!F31="","",'Eingabe und Diagramm'!F31) ->  | H31: 127 | I31: =IF('Eingabe und Diagramm'!I31="","",'Eingabe und Diagramm'!I31) ->  | K31: 177 | L31: =IF('Eingabe und Diagramm'!L31="","",'Eingabe und Diagramm'!L31) ->  | AD31: 27 | AE31: 26 | AF31: 10.33 | AG31: 12 | AH31: 10 | AI31: 10.38 | AJ31: 10.63 | AK31: 10.25 | AL31: 10.76 | AM31: 10.13 | AN31: 10.88 | AO31: 10.51 | AQ31: 0 | AR31: 0 | BC31: 27
B32: 28 | C32: =IF('Eingabe und Diagramm'!C32="","",'Eingabe und Diagramm'!C32) ->  | E32: 78 | F32: =IF('Eingabe und Diagramm'!F32="","",'Eingabe und Diagramm'!F32) ->  | H32: 128 | I32: =IF('Eingabe und Diagramm'!I32="","",'Eingabe und Diagramm'!I32) ->  | K32: 178 | L32: =IF('Eingabe und Diagramm'!L32="","",'Eingabe und Diagramm'!L32) ->  | P32: Beobachtete Leistung in DPPM | AD32: 28 | AE32: 26 | AF32: 10.33 | AG32: 12 | AH32: 10 | AI32: 10.38 | AJ32: 10.63 | AK32: 10.25 | AL32: 10.76 | AM32: 10.13 | AN32: 10.88 | AO32: 10.51 | AQ32: 0 | AR32: 0 | BC32: 28
B33: 29 | C33: =IF('Eingabe und Diagramm'!C33="","",'Eingabe und Diagramm'!C33) ->  | E33: 79 | F33: =IF('Eingabe und Diagramm'!F33="","",'Eingabe und Diagramm'!F33) ->  | H33: 129 | I33: =IF('Eingabe und Diagramm'!I33="","",'Eingabe und Diagramm'!I33) ->  | K33: 179 | L33: =IF('Eingabe und Diagramm'!L33="","",'Eingabe und Diagramm'!L33) ->  | O33: Überschreitungsanteil pUGW | P33: =AQ205/P12*1000000 -> 0 | R33: =_xlfn.NORM.DIST(P9,Mittelwert,Standardabweichung,1) -> 0.0032% | AD33: 29 | AE33: 26 | AF33: 10.33 | AG33: 12 | AH33: 10 | AI33: 10.38 | AJ33: 10.63 | AK33: 10.25 | AL33: 10.76 | AM33: 10.13 | AN33: 10.88 | AO33: 10.51 | AQ33: 0 | AR33: 0 | BC33: 29
B34: 30 | C34: =IF('Eingabe und Diagramm'!C34="","",'Eingabe und Diagramm'!C34) ->  | E34: 80 | F34: =IF('Eingabe und Diagramm'!F34="","",'Eingabe und Diagramm'!F34) ->  | H34: 130 | I34: =IF('Eingabe und Diagramm'!I34="","",'Eingabe und Diagramm'!I34) ->  | K34: 180 | L34: =IF('Eingabe und Diagramm'!L34="","",'Eingabe und Diagramm'!L34) ->  | O34: Überschreitungsanteil pOGW | P34: =AR205/P12*1000000 -> 0 | AD34: 30 | AE34: 26 | AF34: 10.33 | AG34: 12 | AH34: 10 | AI34: 10.38 | AJ34: 10.63 | AK34: 10.25 | AL34: 10.76 | AM34: 10.13 | AN34: 10.88 | AO34: 10.51 | AQ34: 0 | AR34: 0 | BC34: 30
B35: 31 | C35: =IF('Eingabe und Diagramm'!C35="","",'Eingabe und Diagramm'!C35) ->  | E35: 81 | F35: =IF('Eingabe und Diagramm'!F35="","",'Eingabe und Diagramm'!F35) ->  | H35: 131 | I35: =IF('Eingabe und Diagramm'!I35="","",'Eingabe und Diagramm'!I35) ->  | K35: 181 | L35: =IF('Eingabe und Diagramm'!L35="","",'Eingabe und Diagramm'!L35) ->  | O35: Überschreitungsanteil p | P35: =P34+P33 -> 0 | R35: =(1-(_xlfn.NORM.DIST(P10,Mittelwert,Standardabweichung,1))) -> 0.0000% | AD35: 31 | AE35: 26 | AF35: 10.33 | AG35: 12 | AH35: 10 | AI35: 10.38 | AJ35: 10.63 | AK35: 10.25 | AL35: 10.76 | AM35: 10.13 | AN35: 10.88 | AO35: 10.51 | AQ35: 0 | AR35: 0 | BC35: 31
B36: 32 | C36: =IF('Eingabe und Diagramm'!C36="","",'Eingabe und Diagramm'!C36) ->  | E36: 82 | F36: =IF('Eingabe und Diagramm'!F36="","",'Eingabe und Diagramm'!F36) ->  | H36: 132 | I36: =IF('Eingabe und Diagramm'!I36="","",'Eingabe und Diagramm'!I36) ->  | K36: 182 | L36: =IF('Eingabe und Diagramm'!L36="","",'Eingabe und Diagramm'!L36) ->  | AD36: 32 | AE36: 26 | AF36: 10.33 | AG36: 12 | AH36: 10 | AI36: 10.38 | AJ36: 10.63 | AK36: 10.25 | AL36: 10.76 | AM36: 10.13 | AN36: 10.88 | AO36: 10.51 | AQ36: 0 | AR36: 0 | BC36: 32
B37: 33 | C37: =IF('Eingabe und Diagramm'!C37="","",'Eingabe und Diagramm'!C37) ->  | E37: 83 | F37: =IF('Eingabe und Diagramm'!F37="","",'Eingabe und Diagramm'!F37) ->  | H37: 133 | I37: =IF('Eingabe und Diagramm'!I37="","",'Eingabe und Diagramm'!I37) ->  | K37: 183 | L37: =IF('Eingabe und Diagramm'!L37="","",'Eingabe und Diagramm'!L37) ->  | O37: Anteil n.i.O. % | P37: =(1-(_xlfn.NORM.DIST(P10,Mittelwert,Standardabweichung,1)))+(_xlfn.NORM.DIST(P9,Mittelwert,Standardabweichung,1)) -> 0.0032% | AD37: 33 | AE37: =IF((Anzahl>AD37),AD37,Anzahl) -> 26 | AF37: 10.33 | AG37: =IF(C37<>"",OGW,AG36) -> 12 | AH37: =IF(C37<>"",UGW,AH36) -> 10 | AI37: 10.38 | AJ37: 10.63 | AK37: 10.25 | AL37: 10.76 | AM37: 10.13 | AN37: 10.88 | AO37: 10.51 | AQ37: =IF(AND(C37<>"",C37<UGW),1,0) -> 0 | AR37: =IF(AND(C37<>"",C37>OGW),1,0) -> 0 | BC37: 33 | BD37: =IF(C37="",NA(),SMALL(xi,BE37)) ->  | BF37: =IF(C37="","",NORMSDIST((BD37-Mittelwert)/Standardabweichung)) ->  | BG37: =IF(C37="","",1-BF37) ->  | BH37: =IF(C37="","",SMALL(BG,BE37)) ->  | BI37: =IF(C37="","",(2*BE37-1)*(LN(BH37)+LN(BF37))) ->  | BJ37: =IF(C37="",NA(),NORMSINV((BE37-0.3)/(Anzahl+0.4))) -> 
B38: 34 | C38: =IF('Eingabe und Diagramm'!C38="","",'Eingabe und Diagramm'!C38) ->  | E38: 84 | F38: =IF('Eingabe und Diagramm'!F38="","",'Eingabe und Diagramm'!F38) ->  | H38: 134 | I38: =IF('Eingabe und Diagramm'!I38="","",'Eingabe und Diagramm'!I38) ->  | K38: 184 | L38: =IF('Eingabe und Diagramm'!L38="","",'Eingabe und Diagramm'!L38) ->  | O38: Sigma Level | P38: =_xlfn.NORM.INV(1-(1-_xlfn.NORM.DIST(P10,Mittelwert,Standardabweichung,1))-_xlfn.NORM.DIST(P9,Mittelwert,Standardabweichung,1),0,1) -> 4.00 | AD38: 34 | AE38: 26 | AF38: 10.33 | AG38: 12 | AH38: 10 | AI38: =AI37 -> 10.38 | AJ38: 10.63 | AK38: 10.25 | AL38: 10.76 | AM38: 10.13 | AN38: 10.88 | AO38: 10.51 | AQ38: 0 | AR38: 0 | BC38: 34 | BE38: =IF(C38="","",1+BE37) -> 
B39: 35 | C39: =IF('Eingabe und Diagramm'!C39="","",'Eingabe und Diagramm'!C39) ->  | E39: 85 | F39: =IF('Eingabe und Diagramm'!F39="","",'Eingabe und Diagramm'!F39) ->  | H39: 135 | I39: =IF('Eingabe und Diagramm'!I39="","",'Eingabe und Diagramm'!I39) ->  | K39: 185 | L39: =IF('Eingabe und Diagramm'!L39="","",'Eingabe und Diagramm'!L39) ->  | AD39: 35 | AE39: =IF((Anzahl>AD39),AD39,Anzahl) -> 26 | AF39: 10.33 | AG39: 12 | AH39: 10 | AI39: 10.38 | AJ39: 10.63 | AK39: 10.25 | AL39: 10.76 | AM39: 10.13 | AN39: 10.88 | AO39: 10.51 | AQ39: 0 | AR39: 0 | BC39: 35
B40: 36 | C40: =IF('Eingabe und Diagramm'!C40="","",'Eingabe und Diagramm'!C40) ->  | E40: 86 | F40: =IF('Eingabe und Diagramm'!F40="","",'Eingabe und Diagramm'!F40) ->  | H40: 136 | I40: =IF('Eingabe und Diagramm'!I40="","",'Eingabe und Diagramm'!I40) ->  | K40: 186 | L40: =IF('Eingabe und Diagramm'!L40="","",'Eingabe und Diagramm'!L40) ->  | AD40: 36 | AE40: 26 | AF40: 10.33 | AG40: 12 | AH40: 10 | AI40: 10.38 | AJ40: 10.63 | AK40: 10.25 | AL40: 10.76 | AM40: 10.13 | AN40: 10.88 | AO40: 10.51 | AQ40: 0 | AR40: 0 | BC40: 36
B41: 37 | C41: =IF('Eingabe und Diagramm'!C41="","",'Eingabe und Diagramm'!C41) ->  | E41: 87 | F41: =IF('Eingabe und Diagramm'!F41="","",'Eingabe und Diagramm'!F41) ->  | H41: 137 | I41: =IF('Eingabe und Diagramm'!I41="","",'Eingabe und Diagramm'!I41) ->  | K41: 187 | L41: =IF('Eingabe und Diagramm'!L41="","",'Eingabe und Diagramm'!L41) ->  | AD41: 37 | AE41: 26 | AF41: 10.33 | AG41: 12 | AH41: 10 | AI41: 10.38 | AJ41: 10.63 | AK41: 10.25 | AL41: 10.76 | AM41: 10.13 | AN41: 10.88 | AO41: 10.51 | AQ41: 0 | AR41: 0 | BC41: 37
B42: 38 | C42: =IF('Eingabe und Diagramm'!C42="","",'Eingabe und Diagramm'!C42) ->  | E42: 88 | F42: =IF('Eingabe und Diagramm'!F42="","",'Eingabe und Diagramm'!F42) ->  | H42: 138 | I42: =IF('Eingabe und Diagramm'!I42="","",'Eingabe und Diagramm'!I42) ->  | K42: 188 | L42: =IF('Eingabe und Diagramm'!L42="","",'Eingabe und Diagramm'!L42) ->  | AD42: 38 | AE42: 26 | AF42: 10.33 | AG42: 12 | AH42: 10 | AI42: 10.38 | AJ42: 10.63 | AK42: 10.25 | AL42: 10.76 | AM42: 10.13 | AN42: 10.88 | AO42: 10.51 | AQ42: 0 | AR42: 0 | BC42: 38
B43: 39 | C43: =IF('Eingabe und Diagramm'!C43="","",'Eingabe und Diagramm'!C43) ->  | E43: 89 | F43: =IF('Eingabe und Diagramm'!F43="","",'Eingabe und Diagramm'!F43) ->  | H43: 139 | I43: =IF('Eingabe und Diagramm'!I43="","",'Eingabe und Diagramm'!I43) ->  | K43: 189 | L43: =IF('Eingabe und Diagramm'!L43="","",'Eingabe und Diagramm'!L43) ->  | AD43: 39 | AE43: 26 | AF43: 10.33 | AG43: 12 | AH43: 10 | AI43: 10.38 | AJ43: 10.63 | AK43: 10.25 | AL43: 10.76 | AM43: 10.13 | AN43: 10.88 | AO43: 10.51 | AQ43: 0 | AR43: 0 | BC43: 39
B44: 40 | C44: =IF('Eingabe und Diagramm'!C44="","",'Eingabe und Diagramm'!C44) ->  | E44: 90 | F44: =IF('Eingabe und Diagramm'!F44="","",'Eingabe und Diagramm'!F44) ->  | H44: 140 | I44: =IF('Eingabe und Diagramm'!I44="","",'Eingabe und Diagramm'!I44) ->  | K44: 190 | L44: =IF('Eingabe und Diagramm'!L44="","",'Eingabe und Diagramm'!L44) ->  | AD44: 40 | AE44: 26 | AF44: 10.33 | AG44: 12 | AH44: 10 | AI44: 10.38 | AJ44: 10.63 | AK44: 10.25 | AL44: 10.76 | AM44: 10.13 | AN44: 10.88 | AO44: 10.51 | AQ44: 0 | AR44: 0 | BC44: 40
B45: 41 | C45: =IF('Eingabe und Diagramm'!C45="","",'Eingabe und Diagramm'!C45) ->  | E45: 91 | F45: =IF('Eingabe und Diagramm'!F45="","",'Eingabe und Diagramm'!F45) ->  | H45: 141 | I45: =IF('Eingabe und Diagramm'!I45="","",'Eingabe und Diagramm'!I45) ->  | K45: 191 | L45: =IF('Eingabe und Diagramm'!L45="","",'Eingabe und Diagramm'!L45) ->  | AD45: 41 | AE45: 26 | AF45: 10.33 | AG45: 12 | AH45: 10 | AI45: 10.38 | AJ45: 10.63 | AK45: 10.25 | AL45: 10.76 | AM45: 10.13 | AN45: 10.88 | AO45: 10.51 | AQ45: 0 | AR45: 0 | BC45: 41
B46: 42 | C46: =IF('Eingabe und Diagramm'!C46="","",'Eingabe und Diagramm'!C46) ->  | E46: 92 | F46: =IF('Eingabe und Diagramm'!F46="","",'Eingabe und Diagramm'!F46) ->  | H46: 142 | I46: =IF('Eingabe und Diagramm'!I46="","",'Eingabe und Diagramm'!I46) ->  | K46: 192 | L46: =IF('Eingabe und Diagramm'!L46="","",'Eingabe und Diagramm'!L46) ->  | AD46: 42 | AE46: 26 | AF46: 10.33 | AG46: 12 | AH46: 10 | AI46: 10.38 | AJ46: 10.63 | AK46: 10.25 | AL46: 10.76 | AM46: 10.13 | AN46: 10.88 | AO46: 10.51 | AQ46: 0 | AR46: 0 | BC46: 42
B47: 43 | C47: =IF('Eingabe und Diagramm'!C47="","",'Eingabe und Diagramm'!C47) ->  | E47: 93 | F47: =IF('Eingabe und Diagramm'!F47="","",'Eingabe und Diagramm'!F47) ->  | H47: 143 | I47: =IF('Eingabe und Diagramm'!I47="","",'Eingabe und Diagramm'!I47) ->  | K47: 193 | L47: =IF('Eingabe und Diagramm'!L47="","",'Eingabe und Diagramm'!L47) ->  | AD47: 43 | AE47: 26 | AF47: 10.33 | AG47: 12 | AH47: 10 | AI47: 10.38 | AJ47: 10.63 | AK47: 10.25 | AL47: 10.76 | AM47: 10.13 | AN47: 10.88 | AO47: 10.51 | AQ47: 0 | AR47: 0 | BC47: 43
B48: 44 | C48: =IF('Eingabe und Diagramm'!C48="","",'Eingabe und Diagramm'!C48) ->  | E48: 94 | F48: =IF('Eingabe und Diagramm'!F48="","",'Eingabe und Diagramm'!F48) ->  | H48: 144 | I48: =IF('Eingabe und Diagramm'!I48="","",'Eingabe und Diagramm'!I48) ->  | K48: 194 | L48: =IF('Eingabe und Diagramm'!L48="","",'Eingabe und Diagramm'!L48) ->  | AD48: 44 | AE48: 26 | AF48: 10.33 | AG48: 12 | AH48: 10 | AI48: 10.38 | AJ48: 10.63 | AK48: 10.25 | AL48: 10.76 | AM48: 10.13 | AN48: 10.88 | AO48: 10.51 | AQ48: 0 | AR48: 0 | BC48: 44
B49: 45 | C49: =IF('Eingabe und Diagramm'!C49="","",'Eingabe und Diagramm'!C49) ->  | E49: 95 | F49: =IF('Eingabe und Diagramm'!F49="","",'Eingabe und Diagramm'!F49) ->  | H49: 145 | I49: =IF('Eingabe und Diagramm'!I49="","",'Eingabe und Diagramm'!I49) ->  | K49: 195 | L49: =IF('Eingabe und Diagramm'!L49="","",'Eingabe und Diagramm'!L49) ->  | AD49: 45 | AE49: 26 | AF49: 10.33 | AG49: 12 | AH49: 10 | AI49: 10.38 | AJ49: 10.63 | AK49: 10.25 | AL49: 10.76 | AM49: 10.13 | AN49: 10.88 | AO49: 10.51 | AQ49: 0 | AR49: 0 | BC49: 45
B50: 46 | C50: =IF('Eingabe und Diagramm'!C50="","",'Eingabe und Diagramm'!C50) ->  | E50: 96 | F50: =IF('Eingabe und Diagramm'!F50="","",'Eingabe und Diagramm'!F50) ->  | H50: 146 | I50: =IF('Eingabe und Diagramm'!I50="","",'Eingabe und Diagramm'!I50) ->  | K50: 196 | L50: =IF('Eingabe und Diagramm'!L50="","",'Eingabe und Diagramm'!L50) ->  | AD50: 46 | AE50: 26 | AF50: 10.33 | AG50: 12 | AH50: 10 | AI50: 10.38 | AJ50: 10.63 | AK50: 10.25 | AL50: 10.76 | AM50: 10.13 | AN50: 10.88 | AO50: 10.51 | AQ50: 0 | AR50: 0 | BC50: 46
B51: 47 | C51: =IF('Eingabe und Diagramm'!C51="","",'Eingabe und Diagramm'!C51) ->  | E51: 97 | F51: =IF('Eingabe und Diagramm'!F51="","",'Eingabe und Diagramm'!F51) ->  | H51: 147 | I51: =IF('Eingabe und Diagramm'!I51="","",'Eingabe und Diagramm'!I51) ->  | K51: 197 | L51: =IF('Eingabe und Diagramm'!L51="","",'Eingabe und Diagramm'!L51) ->  | AD51: 47 | AE51: 26 | AF51: 10.33 | AG51: 12 | AH51: 10 | AI51: 10.38 | AJ51: 10.63 | AK51: 10.25 | AL51: 10.76 | AM51: 10.13 | AN51: 10.88 | AO51: 10.51 | AQ51: 0 | AR51: 0 | BC51: 47
B52: 48 | C52: =IF('Eingabe und Diagramm'!C52="","",'Eingabe und Diagramm'!C52) ->  | E52: 98 | F52: =IF('Eingabe und Diagramm'!F52="","",'Eingabe und Diagramm'!F52) ->  | H52: 148 | I52: =IF('Eingabe und Diagramm'!I52="","",'Eingabe und Diagramm'!I52) ->  | K52: 198 | L52: =IF('Eingabe und Diagramm'!L52="","",'Eingabe und Diagramm'!L52) ->  | AD52: 48 | AE52: 26 | AF52: 10.33 | AG52: 12 | AH52: 10 | AI52: 10.38 | AJ52: 10.63 | AK52: 10.25 | AL52: 10.76 | AM52: 10.13 | AN52: 10.88 | AO52: 10.51 | AQ52: 0 | AR52: 0 | BC52: 48
B53: 49 | C53: =IF('Eingabe und Diagramm'!C53="","",'Eingabe und Diagramm'!C53) ->  | E53: 99 | F53: =IF('Eingabe und Diagramm'!F53="","",'Eingabe und Diagramm'!F53) ->  | H53: 149 | I53: =IF('Eingabe und Diagramm'!I53="","",'Eingabe und Diagramm'!I53) ->  | K53: 199 | L53: =IF('Eingabe und Diagramm'!L53="","",'Eingabe und Diagramm'!L53) ->  | AD53: 49 | AE53: 26 | AF53: 10.33 | AG53: 12 | AH53: 10 | AI53: 10.38 | AJ53: 10.63 | AK53: 10.25 | AL53: 10.76 | AM53: 10.13 | AN53: 10.88 | AO53: 10.51 | AQ53: 0 | AR53: 0 | BC53: 49
B54: 50 | C54: =IF('Eingabe und Diagramm'!C54="","",'Eingabe und Diagramm'!C54) ->  | E54: 100 | F54: =IF('Eingabe und Diagramm'!F54="","",'Eingabe und Diagramm'!F54) ->  | H54: 150 | I54: =IF('Eingabe und Diagramm'!I54="","",'Eingabe und Diagramm'!I54) ->  | K54: 200 | L54: =IF('Eingabe und Diagramm'!L54="","",'Eingabe und Diagramm'!L54) ->  | AD54: 50 | AE54: 26 | AF54: 10.33 | AG54: 12 | AH54: 10 | AI54: =AI53 -> 10.38 | AJ54: 10.63 | AK54: 10.25 | AL54: 10.76 | AM54: 10.13 | AN54: 10.88 | AO54: 10.51 | AQ54: 0 | AR54: 0 | BC54: 50
B55: 51 | C55: =IF(F5="","",F5) ->  | AD55: 51 | AE55: 26 | AF55: 10.33 | AG55: 12 | AH55: 10 | AI55: 10.38 | AJ55: 10.63 | AK55: 10.25 | AL55: 10.76 | AM55: 10.13 | AN55: 10.88 | AO55: 10.51 | AQ55: 0 | AR55: 0 | BC55: 51
B56: 52 | C56: =IF(F6="","",F6) ->  | AD56: 52 | AE56: 26 | AF56: 10.33 | AG56: 12 | AH56: 10 | AI56: 10.38 | AJ56: 10.63 | AK56: 10.25 | AL56: 10.76 | AM56: 10.13 | AN56: 10.88 | AO56: 10.51 | AQ56: 0 | AR56: 0 | BC56: 52
B57: 53 | C57: =IF(F7="","",F7) ->  | AD57: 53 | AE57: 26 | AF57: 10.33 | AG57: 12 | AH57: 10 | AI57: 10.38 | AJ57: 10.63 | AK57: 10.25 | AL57: 10.76 | AM57: 10.13 | AN57: 10.88 | AO57: 10.51 | AQ57: 0 | AR57: 0 | BC57: 53
B58: 54 | C58: =IF(F8="","",F8) ->  | P58: Histogramm Messwerte | AD58: 54 | AE58: 26 | AF58: 10.33 | AG58: 12 | AH58: 10 | AI58: 10.38 | AJ58: 10.63 | AK58: 10.25 | AL58: 10.76 | AM58: 10.13 | AN58: 10.88 | AO58: 10.51 | AQ58: 0 | AR58: 0 | BC58: 54
B59: 55 | P59: Anzahl Klassen Histogramm | S59: =AnzahlKlassenHistogramm -> 5 | AD59: 55 | AE59: 26 | AF59: 10.33 | AG59: 12 | AH59: 10 | AI59: 10.38 | AJ59: 10.63 | AK59: 10.25 | AL59: 10.76 | AM59: 10.13 | AN59: 10.88 | AO59: 10.51 | AQ59: 0 | AR59: 0 | BC59: 55
B60: 56 | P60: Nummer | Q60: Untere | R60: Obere | U60: Absolute | V60: Relative | Y60: Häufig- | AD60: 56 | AE60: 26 | AF60: 10.33 | AG60: 12 | AH60: 10 | AI60: 10.38 | AJ60: 10.63 | AK60: 10.25 | AL60: 10.76 | AM60: 10.13 | AN60: 10.88 | AO60: 10.51 | AQ60: 0 | AR60: 0 | BC60: 56
B61: 57 | P61: der | Q61: Klassen- | R61: Klassen- | S61: Klassen- | T61: Klassen- | U61: Summen- | V61: Summen- | W61: Absolute | X61: Relative | Y61: keits- | AD61: 57 | AE61: 26 | AF61: 10.33 | AG61: 12 | AH61: 10 | AI61: 10.38 | AJ61: 10.63 | AK61: 10.25 | AL61: 10.76 | AM61: 10.13 | AN61: 10.88 | AO61: 10.51 | AQ61: 0 | AR61: 0 | BC61: 57
B62: 58 | P62: Klasse | Q62: grenze | R62: grenze | S62: mitte | T62: breite | U62: häufigkeit | V62: häufigkeit | W62: Häufigkeit | X62: Häufigkeit | Y62: dichte | AD62: 58 | AE62: 26 | AF62: 10.33 | AG62: 12 | AH62: 10 | AI62: 10.38 | AJ62: 10.63 | AK62: 10.25 | AL62: 10.76 | AM62: 10.13 | AN62: 10.88 | AO62: 10.51 | AQ62: 0 | AR62: 0 | BC62: 58
B63: 59 | P63: j | Q63: UKGj | R63: OKGj | S63: xj´ | T63: wj | U63: G(OKGj) | V63: H(OKGj) | W63: nj | X63: hj | Y63: h(x) | AD63: 59 | AE63: 26 | AF63: 10.33 | AG63: 12 | AH63: 10 | AI63: 10.38 | AJ63: 10.63 | AK63: 10.25 | AL63: 10.76 | AM63: 10.13 | AN63: 10.88 | AO63: 10.51 | AQ63: 0 | AR63: 0 | BC63: 59
B64: 60 | P64: 1 | Q64: =Minimum -> 10.3000 | R64: =Q64+T64 -> 10.4000 | S64: =(R64+Q64)/2 -> 10.3500 | T64: =Spannweite/AnzahlKlassenHistogramm -> 0.10000 | U64: =FREQUENCY(xi,R64) -> 9 | V64: =$U64/Anzahl -> 34.6% | W64: =U64 -> 9 | X64: =W64/Anzahl -> 34.6% | Y64: =X64/T64 -> 3.46 | AD64: 60 | AE64: 26 | AF64: 10.33 | AG64: 12 | AH64: 10 | AI64: 10.38 | AJ64: 10.63 | AK64: 10.25 | AL64: 10.76 | AM64: 10.13 | AN64: 10.88 | AO64: 10.51 | AQ64: 0 | AR64: 0 | BC64: 60
B65: 61 | P65: 2 | Q65: =IF(AnzahlKlassenHistogramm<P65,Q64,Q64+T65+0.00000001) -> 10.4000 | R65: =Q65+T65 -> 10.5000 | S65: =(R65+Q65)/2 -> 10.4500 | T65: 0.10000 | U65: 17 | V65: 65.4% | W65: =U65-U64 -> 8 | X65: 30.8% | Y65: =X65/T65 -> 3.08 | AD65: 61 | AE65: 26 | AF65: 10.33 | AG65: 12 | AH65: 10 | AI65: 10.38 | AJ65: 10.63 | AK65: 10.25 | AL65: 10.76 | AM65: 10.13 | AN65: 10.88 | AO65: 10.51 | AQ65: 0 | AR65: 0 | BC65: 61
B66: 62 | P66: 3 | Q66: 10.5000 | R66: =Q66+T66 -> 10.6000 | S66: =(R66+Q66)/2 -> 10.5500 | T66: 0.10000 | U66: 23 | V66: 88.5% | W66: =U66-U65 -> 6 | X66: 23.1% | Y66: =X66/T66 -> 2.31 | AD66: 62 | AE66: 26 | AF66: 10.33 | AG66: 12 | AH66: 10 | AI66: 10.38 | AJ66: 10.63 | AK66: 10.25 | AL66: 10.76 | AM66: 10.13 | AN66: 10.88 | AO66: 10.51 | AQ66: 0 | AR66: 0 | BC66: 62
B67: 63 | P67: 4 | Q67: 10.6000 | R67: 10.7000 | S67: 10.6500 | T67: 0.10000 | U67: 25 | V67: 96.2% | W67: 2 | X67: 7.7% | Y67: 0.77 | AD67: 63 | AE67: 26 | AF67: 10.33 | AG67: 12 | AH67: 10 | AI67: 10.38 | AJ67: 10.63 | AK67: 10.25 | AL67: 10.76 | AM67: 10.13 | AN67: 10.88 | AO67: 10.51 | AQ67: 0 | AR67: 0 | BC67: 63
B68: 64 | P68: 5 | Q68: 10.7000 | R68: 10.8000 | S68: 10.7500 | T68: 0.10000 | U68: 26 | V68: 100.0% | W68: 1 | X68: 3.8% | Y68: 0.38 | AD68: 64 | AE68: 26 | AF68: 10.33 | AG68: 12 | AH68: 10 | AI68: 10.38 | AJ68: 10.63 | AK68: 10.25 | AL68: 10.76 | AM68: 10.13 | AN68: 10.88 | AO68: 10.51 | AQ68: 0 | AR68: 0 | BC68: 64
B69: 65 | P69: 6 | Q69: 10.7000 | R69: 10.8000 | S69: 10.7500 | T69: 0.10000 | U69: 26 | V69: 100.0% | W69: 0 | X69: 0.0% | Y69: 0.00 | AD69: 65 | AE69: =IF((Anzahl>AD69),AD69,Anzahl) -> 26 | AF69: 10.33 | AG69: =IF(C69<>"",OGW,AG68) -> 12 | AH69: =IF(C69<>"",UGW,AH68) -> 10 | AI69: 10.38 | AJ69: 10.63 | AK69: 10.25 | AL69: 10.76 | AM69: 10.13 | AN69: 10.88 | AO69: 10.51 | AQ69: =IF(AND(C69<>"",C69<UGW),1,0) -> 0 | AR69: =IF(AND(C69<>"",C69>OGW),1,0) -> 0 | BC69: 65 | BD69: =IF(C69="",NA(),SMALL(xi,BE69)) ->  | BF69: =IF(C69="","",NORMSDIST((BD69-Mittelwert)/Standardabweichung)) ->  | BG69: =IF(C69="","",1-BF69) ->  | BH69: =IF(C69="","",SMALL(BG,BE69)) ->  | BI69: =IF(C69="","",(2*BE69-1)*(LN(BH69)+LN(BF69))) ->  | BJ69: =IF(C69="",NA(),NORMSINV((BE69-0.3)/(Anzahl+0.4))) -> 
B70: 66 | P70: 7 | Q70: 10.7000 | R70: 10.8000 | S70: 10.7500 | T70: 0.10000 | U70: 26 | V70: 100.0% | W70: 0 | X70: 0.0% | Y70: 0.00 | AD70: 66 | AE70: 26 | AF70: 10.33 | AG70: 12 | AH70: 10 | AI70: =AI69 -> 10.38 | AJ70: 10.63 | AK70: 10.25 | AL70: 10.76 | AM70: 10.13 | AN70: 10.88 | AO70: 10.51 | AQ70: 0 | AR70: 0 | BC70: 66 | BE70: =IF(C70="","",1+BE69) -> 
B71: 67 | P71: 8 | Q71: 10.7000 | R71: 10.8000 | S71: 10.7500 | T71: 0.10000 | U71: 26 | V71: 100.0% | W71: 0 | X71: 0.0% | Y71: 0.00 | AD71: 67 | AE71: 26 | AF71: 10.33 | AG71: 12 | AH71: 10 | AI71: 10.38 | AJ71: 10.63 | AK71: 10.25 | AL71: 10.76 | AM71: 10.13 | AN71: 10.88 | AO71: 10.51 | AQ71: 0 | AR71: 0 | BC71: 67
B72: 68 | P72: 9 | Q72: 10.7000 | R72: 10.8000 | S72: 10.7500 | T72: 0.10000 | U72: 26 | V72: 100.0% | W72: 0 | X72: 0.0% | Y72: 0.00 | AD72: 68 | AE72: 26 | AF72: =IF(C72<>"",C72,AF71) -> 10.33 | AG72: 12 | AH72: 10 | AI72: 10.38 | AJ72: 10.63 | AK72: 10.25 | AL72: 10.76 | AM72: 10.13 | AN72: 10.88 | AO72: 10.51 | AQ72: 0 | AR72: 0 | BC72: 68
B73: 69 | P73: 10 | Q73: 10.7000 | R73: 10.8000 | S73: 10.7500 | T73: 0.10000 | U73: 26 | V73: 100.0% | W73: 0 | X73: 0.0% | Y73: 0.00 | AD73: 69 | AE73: 26 | AF73: 10.33 | AG73: 12 | AH73: 10 | AI73: 10.38 | AJ73: 10.63 | AK73: 10.25 | AL73: 10.76 | AM73: 10.13 | AN73: 10.88 | AO73: 10.51 | AQ73: 0 | AR73: 0 | BC73: 69
B74: 70 | P74: 11 | Q74: 10.7000 | R74: 10.8000 | S74: 10.7500 | T74: 0.10000 | U74: 26 | V74: 100.0% | W74: 0 | X74: 0.0% | Y74: 0.00 | AD74: 70 | AE74: 26 | AF74: 10.33 | AG74: 12 | AH74: 10 | AI74: 10.38 | AJ74: 10.63 | AK74: 10.25 | AL74: 10.76 | AM74: 10.13 | AN74: 10.88 | AO74: 10.51 | AQ74: 0 | AR74: 0 | BC74: 70
B75: 71 | P75: 12 | Q75: 10.7000 | R75: 10.8000 | S75: 10.7500 | T75: 0.10000 | U75: 26 | V75: 100.0% | W75: 0 | X75: 0.0% | Y75: 0.00 | AD75: 71 | AE75: 26 | AF75: 10.33 | AG75: 12 | AH75: 10 | AI75: 10.38 | AJ75: 10.63 | AK75: 10.25 | AL75: 10.76 | AM75: 10.13 | AN75: 10.88 | AO75: 10.51 | AQ75: 0 | AR75: 0 | BC75: 71
B76: 72 | P76: 13 | Q76: 10.7000 | R76: 10.8000 | S76: 10.7500 | T76: 0.10000 | U76: 26 | V76: 100.0% | W76: 0 | X76: 0.0% | Y76: 0.00 | AD76: 72 | AE76: 26 | AF76: 10.33 | AG76: 12 | AH76: 10 | AI76: 10.38 | AJ76: 10.63 | AK76: 10.25 | AL76: 10.76 | AM76: 10.13 | AN76: 10.88 | AO76: 10.51 | AQ76: 0 | AR76: 0 | BC76: 72
B77: 73 | P77: 14 | Q77: 10.7000 | R77: 10.8000 | S77: 10.7500 | T77: 0.10000 | U77: 26 | V77: 100.0% | W77: 0 | X77: 0.0% | Y77: 0.00 | AD77: 73 | AE77: 26 | AF77: 10.33 | AG77: 12 | AH77: 10 | AI77: 10.38 | AJ77: 10.63 | AK77: 10.25 | AL77: 10.76 | AM77: 10.13 | AN77: 10.88 | AO77: 10.51 | AQ77: 0 | AR77: 0 | BC77: 73
B78: 74 | P78: 15 | Q78: 10.7000 | R78: 10.8000 | S78: 10.7500 | T78: 0.10000 | U78: 26 | V78: 100.0% | W78: 0 | X78: 0.0% | Y78: 0.00 | AD78: 74 | AE78: 26 | AF78: 10.33 | AG78: 12 | AH78: 10 | AI78: 10.38 | AJ78: 10.63 | AK78: 10.25 | AL78: 10.76 | AM78: 10.13 | AN78: 10.88 | AO78: 10.51 | AQ78: 0 | AR78: 0 | BC78: 74
B79: 75 | P79: 16 | Q79: 10.7000 | R79: 10.8000 | S79: 10.7500 | T79: 0.10000 | U79: 26 | V79: 100.0% | W79: 0 | X79: 0.0% | Y79: 0.00 | AD79: 75 | AE79: 26 | AF79: 10.33 | AG79: 12 | AH79: 10 | AI79: 10.38 | AJ79: 10.63 | AK79: 10.25 | AL79: 10.76 | AM79: 10.13 | AN79: 10.88 | AO79: 10.51 | AQ79: 0 | AR79: 0 | BC79: 75
B80: 76 | P80: 17 | Q80: 10.7000 | R80: 10.8000 | S80: 10.7500 | T80: 0.10000 | U80: 26 | V80: 100.0% | W80: 0 | X80: 0.0% | Y80: 0.00 | AD80: 76 | AE80: 26 | AF80: 10.33 | AG80: 12 | AH80: 10 | AI80: 10.38 | AJ80: 10.63 | AK80: 10.25 | AL80: 10.76 | AM80: 10.13 | AN80: 10.88 | AO80: 10.51 | AQ80: 0 | AR80: 0 | BC80: 76
B81: 77 | P81: 18 | Q81: 10.7000 | R81: 10.8000 | S81: 10.7500 | T81: 0.10000 | U81: 26 | V81: 100.0% | W81: 0 | X81: 0.0% | Y81: 0.00 | AD81: 77 | AE81: 26 | AF81: 10.33 | AG81: 12 | AH81: 10 | AI81: 10.38 | AJ81: 10.63 | AK81: 10.25 | AL81: 10.76 | AM81: 10.13 | AN81: 10.88 | AO81: 10.51 | AQ81: 0 | AR81: 0 | BC81: 77
B82: 78 | P82: 19 | Q82: 10.7000 | R82: 10.8000 | S82: 10.7500 | T82: 0.10000 | U82: 26 | V82: 100.0% | W82: 0 | X82: 0.0% | Y82: 0.00 | AD82: 78 | AE82: 26 | AF82: 10.33 | AG82: 12 | AH82: 10 | AI82: 10.38 | AJ82: 10.63 | AK82: 10.25 | AL82: 10.76 | AM82: 10.13 | AN82: 10.88 | AO82: 10.51 | AQ82: 0 | AR82: 0 | BC82: 78
B83: 79 | P83: 20 | Q83: 10.7000 | R83: 10.8000 | S83: 10.7500 | T83: 0.10000 | U83: 26 | V83: 100.0% | W83: 0 | X83: 0.0% | Y83: 0.00 | AD83: 79 | AE83: 26 | AF83: 10.33 | AG83: 12 | AH83: 10 | AI83: 10.38 | AJ83: 10.63 | AK83: 10.25 | AL83: 10.76 | AM83: 10.13 | AN83: 10.88 | AO83: 10.51 | AQ83: 0 | AR83: 0 | BC83: 79
B84: 80 | AD84: 80 | AE84: 26 | AF84: 10.33 | AG84: 12 | AH84: 10 | AI84: 10.38 | AJ84: 10.63 | AK84: 10.25 | AL84: 10.76 | AM84: 10.13 | AN84: 10.88 | AO84: 10.51 | AQ84: 0 | AR84: 0 | BC84: 80
B85: 81 | AD85: 81 | AE85: 26 | AF85: 10.33 | AG85: 12 | AH85: 10 | AI85: 10.38 | AJ85: 10.63 | AK85: 10.25 | AL85: 10.76 | AM85: 10.13 | AN85: 10.88 | AO85: 10.51 | AQ85: 0 | AR85: 0 | BC85: 81
B86: 82 | P86: Histogramm Normalverteilung | AD86: 82 | AE86: 26 | AF86: 10.33 | AG86: 12 | AH86: 10 | AI86: =AI85 -> 10.38 | AJ86: 10.63 | AK86: 10.25 | AL86: 10.76 | AM86: 10.13 | AN86: 10.88 | AO86: 10.51 | AQ86: 0 | AR86: 0 | BC86: 82
B87: 83 | Q87: 1.1 | R87: =R88-(Q87*Standardabweichung) -> 9.67 | S87: =NORMDIST(R87,Mittelwert,Standardabweichung,0) -> 0.00 | U87: =IF('Eingabe und Diagramm'!AB2=1,"OGW","USL") -> USL | V87: =OGW -> 12.0000 | W87: =MAX(Häufigkeitsdichte)*1.05 -> 3.63 | AD87: 83 | AE87: 26 | AF87: 10.33 | AG87: 12 | AH87: 10 | AI87: 10.38 | AJ87: 10.63 | AK87: 10.25 | AL87: 10.76 | AM87: 10.13 | AN87: 10.88 | AO87: 10.51 | AQ87: 0 | AR87: 0 | BC87: 83
B88: 84 | Q88: 1 | R88: 9.81 | S88: 0.00 | U88: =IF('Eingabe und Diagramm'!AB2=1,"UGW","LSL") -> LSL | V88: =UGW -> 10.0000 | W88: 3.63 | AD88: 84 | AE88: 26 | AF88: 10.33 | AG88: 12 | AH88: 10 | AI88: 10.38 | AJ88: 10.63 | AK88: 10.25 | AL88: 10.76 | AM88: 10.13 | AN88: 10.88 | AO88: 10.51 | AQ88: 0 | AR88: 0 | BC88: 84
B89: 85 | Q89: 0.9 | R89: 9.94 | S89: 0.00 | U89: ="+ 3 Sigma" -> + 3 Sigma | V89: =Mittelwert+3*Standardabweichung -> 10.8836 | W89: 3.63 | AD89: 85 | AE89: 26 | AF89: 10.33 | AG89: 12 | AH89: 10 | AI89: 10.38 | AJ89: 10.63 | AK89: 10.25 | AL89: 10.76 | AM89: 10.13 | AN89: 10.88 | AO89: 10.51 | AQ89: 0 | AR89: 0 | BC89: 85
B90: 86 | Q90: 0.8 | R90: 10.05 | S90: 0.00 | U90: ="- 3 Sigma" -> - 3 Sigma | V90: =Mittelwert-3*Standardabweichung -> 10.1264 | W90: 3.63 | AD90: 86 | AE90: 26 | AF90: 10.33 | AG90: 12 | AH90: 10 | AI90: 10.38 | AJ90: 10.63 | AK90: 10.25 | AL90: 10.76 | AM90: 10.13 | AN90: 10.88 | AO90: 10.51 | AQ90: 0 | AR90: 0 | BC90: 86
B91: 87 | Q91: 0.7 | R91: 10.15 | S91: 0.06 | U91: =O13 -> mid µ | V91: =Mittelwert -> 10.5050 | W91: 3.63 | AD91: 87 | AE91: 26 | AF91: 10.33 | AG91: 12 | AH91: 10 | AI91: 10.38 | AJ91: 10.63 | AK91: 10.25 | AL91: 10.76 | AM91: 10.13 | AN91: 10.88 | AO91: 10.51 | AQ91: 0 | AR91: 0 | BC91: 87
B92: 88 | Q92: 0.6 | R92: 10.24 | S92: 0.35 | U92: =O8 -> Nominal value = | V92: =Sollwert -> 11.0000 | W92: 3.63 | AD92: 88 | AE92: 26 | AF92: 10.33 | AG92: 12 | AH92: 10 | AI92: 10.38 | AJ92: 10.63 | AK92: 10.25 | AL92: 10.76 | AM92: 10.13 | AN92: 10.88 | AO92: 10.51 | AQ92: 0 | AR92: 0 | BC92: 88
B93: 89 | Q93: 0.5 | R93: 10.32 | S93: 1.03 | AD93: 89 | AE93: 26 | AF93: 10.33 | AG93: 12 | AH93: 10 | AI93: 10.38 | AJ93: 10.63 | AK93: 10.25 | AL93: 10.76 | AM93: 10.13 | AN93: 10.88 | AO93: 10.51 | AQ93: 0 | AR93: 0 | BC93: 89
B94: 90 | Q94: 0.4 | R94: 10.38 | S94: 1.92 | AD94: 90 | AE94: 26 | AF94: 10.33 | AG94: 12 | AH94: 10 | AI94: 10.38 | AJ94: 10.63 | AK94: 10.25 | AL94: 10.76 | AM94: 10.13 | AN94: 10.88 | AO94: 10.51 | AQ94: 0 | AR94: 0 | BC94: 90
B95: 91 | Q95: 0.3 | R95: 10.43 | S95: 2.64 | AD95: 91 | AE95: 26 | AF95: 10.33 | AG95: 12 | AH95: 10 | AI95: 10.38 | AJ95: 10.63 | AK95: 10.25 | AL95: 10.76 | AM95: 10.13 | AN95: 10.88 | AO95: 10.51 | AQ95: 0 | AR95: 0 | BC95: 91
B96: 92 | Q96: 0.2 | R96: 10.47 | S96: 3.02 | AD96: 92 | AE96: 26 | AF96: 10.33 | AG96: 12 | AH96: 10 | AI96: 10.38 | AJ96: 10.63 | AK96: 10.25 | AL96: 10.76 | AM96: 10.13 | AN96: 10.88 | AO96: 10.51 | AQ96: 0 | AR96: 0 | BC96: 92
B97: 93 | Q97: 0.1 | R97: 10.49 | S97: 3.15 | AD97: 93 | AE97: 26 | AF97: 10.33 | AG97: 12 | AH97: 10 | AI97: 10.38 | AJ97: 10.63 | AK97: 10.25 | AL97: 10.76 | AM97: 10.13 | AN97: 10.88 | AO97: 10.51 | AQ97: 0 | AR97: 0 | BC97: 93
B98: 94 | Q98: 0 | R98: =Mittelwert -> 10.51 | S98: 3.16 | AD98: 94 | AE98: 26 | AF98: 10.33 | AG98: 12 | AH98: 10 | AI98: 10.38 | AJ98: 10.63 | AK98: 10.25 | AL98: 10.76 | AM98: 10.13 | AN98: 10.88 | AO98: 10.51 | AQ98: 0 | AR98: 0 | BC98: 94
B99: 95 | Q99: 0.1 | R99: =R98+(Q99*Standardabweichung) -> 10.52 | S99: 3.15 | AD99: 95 | AE99: 26 | AF99: 10.33 | AG99: 12 | AH99: 10 | AI99: 10.38 | AJ99: 10.63 | AK99: 10.25 | AL99: 10.76 | AM99: 10.13 | AN99: 10.88 | AO99: 10.51 | AQ99: 0 | AR99: 0 | BC99: 95
B100: 96 | Q100: 0.2 | R100: 10.54 | S100: 3.02 | AD100: 96 | AE100: 26 | AF100: 10.33 | AG100: 12 | AH100: 10 | AI100: 10.38 | AJ100: 10.63 | AK100: 10.25 | AL100: 10.76 | AM100: 10.13 | AN100: 10.88 | AO100: 10.51 | AQ100: 0 | AR100: 0 | BC100: 96
B101: 97 | Q101: 0.3 | R101: 10.58 | S101: 2.64 | AD101: 97 | AE101: =IF((Anzahl>AD101),AD101,Anzahl) -> 26 | AF101: 10.33 | AG101: =IF(C101<>"",OGW,AG100) -> 12 | AH101: =IF(C101<>"",UGW,AH100) -> 10 | AI101: 10.38 | AJ101: 10.63 | AK101: 10.25 | AL101: 10.76 | AM101: 10.13 | AN101: 10.88 | AO101: 10.51 | AQ101: =IF(AND(C101<>"",C101<UGW),1,0) -> 0 | AR101: =IF(AND(C101<>"",C101>OGW),1,0) -> 0 | BC101: 97 | BD101: =IF(C101="",NA(),SMALL(xi,BE101)) ->  | BF101: =IF(C101="","",NORMSDIST((BD101-Mittelwert)/Standardabweichung)) ->  | BG101: =IF(C101="","",1-BF101) ->  | BH101: =IF(C101="","",SMALL(BG,BE101)) ->  | BI101: =IF(C101="","",(2*BE101-1)*(LN(BH101)+LN(BF101))) ->  | BJ101: =IF(C101="",NA(),NORMSINV((BE101-0.3)/(Anzahl+0.4))) -> 
B102: 98 | Q102: 0.4 | R102: 10.63 | S102: 1.92 | AD102: 98 | AE102: 26 | AF102: 10.33 | AG102: 12 | AH102: 10 | AI102: =AI101 -> 10.38 | AJ102: 10.63 | AK102: 10.25 | AL102: 10.76 | AM102: 10.13 | AN102: 10.88 | AO102: 10.51 | AQ102: 0 | AR102: 0 | BC102: 98 | BE102: =IF(C102="","",1+BE101) -> 
B103: 99 | Q103: 0.5 | R103: 10.69 | S103: 1.03 | AD103: 99 | AE103: 26 | AF103: 10.33 | AG103: 12 | AH103: 10 | AI103: 10.38 | AJ103: 10.63 | AK103: 10.25 | AL103: 10.76 | AM103: 10.13 | AN103: 10.88 | AO103: 10.51 | AQ103: 0 | AR103: 0 | BC103: 99
B104: 100 | C104: =IF(F54="","",F54) ->  | Q104: 0.6 | R104: 10.77 | S104: 0.35 | AD104: 100 | AE104: 26 | AF104: 10.33 | AG104: 12 | AH104: 10 | AI104: 10.38 | AJ104: 10.63 | AK104: 10.25 | AL104: 10.76 | AM104: 10.13 | AN104: 10.88 | AO104: 10.51 | AQ104: 0 | AR104: 0 | BC104: 100
B105: 101 | C105: =IF(I5="","",I5) ->  | Q105: 0.7 | R105: 10.86 | S105: 0.06 | AD105: 101 | AE105: =IF((Anzahl>AD105),AD105,Anzahl) -> 26 | AF105: 10.33 | AG105: 12 | AH105: 10 | AI105: 10.38 | AJ105: 10.63 | AK105: 10.25 | AL105: 10.76 | AM105: 10.13 | AN105: 10.88 | AO105: 10.51 | AQ105: 0 | AR105: 0 | BC105: 101
B106: 102 | C106: =IF(I6="","",I6) ->  | Q106: 0.8 | R106: 10.96 | S106: 0.00 | AD106: 102 | AE106: 26 | AF106: 10.33 | AG106: 12 | AH106: 10 | AI106: 10.38 | AJ106: 10.63 | AK106: 10.25 | AL106: 10.76 | AM106: 10.13 | AN106: 10.88 | AO106: 10.51 | AQ106: 0 | AR106: 0 | BC106: 102
B107: 103 | Q107: 0.9 | R107: 11.07 | S107: 0.00 | AD107: 103 | AE107: 26 | AF107: 10.33 | AG107: 12 | AH107: 10 | AI107: 10.38 | AJ107: 10.63 | AK107: 10.25 | AL107: 10.76 | AM107: 10.13 | AN107: 10.88 | AO107: 10.51 | AQ107: 0 | AR107: 0 | BC107: 103
B108: 104 | Q108: 1 | R108: 11.20 | S108: 0.00 | AD108: 104 | AE108: 26 | AF108: 10.33 | AG108: 12 | AH108: 10 | AI108: 10.38 | AJ108: 10.63 | AK108: 10.25 | AL108: 10.76 | AM108: 10.13 | AN108: 10.88 | AO108: 10.51 | AQ108: 0 | AR108: 0 | BC108: 104
B109: 105 | Q109: 1.1 | R109: 11.34 | S109: 0.00 | AD109: 105 | AE109: 26 | AF109: 10.33 | AG109: 12 | AH109: 10 | AI109: 10.38 | AJ109: 10.63 | AK109: 10.25 | AL109: 10.76 | AM109: 10.13 | AN109: 10.88 | AO109: 10.51 | AQ109: 0 | AR109: 0 | BC109: 105
B110: 106 | AD110: 106 | AE110: 26 | AF110: 10.33 | AG110: 12 | AH110: 10 | AI110: 10.38 | AJ110: 10.63 | AK110: 10.25 | AL110: 10.76 | AM110: 10.13 | AN110: 10.88 | AO110: 10.51 | AQ110: 0 | AR110: 0 | BC110: 106
B111: 107 | AD111: 107 | AE111: 26 | AF111: 10.33 | AG111: 12 | AH111: 10 | AI111: 10.38 | AJ111: 10.63 | AK111: 10.25 | AL111: 10.76 | AM111: 10.13 | AN111: 10.88 | AO111: 10.51 | AQ111: 0 | AR111: 0 | BC111: 107
B112: 108 | AD112: 108 | AE112: 26 | AF112: 10.33 | AG112: 12 | AH112: 10 | AI112: 10.38 | AJ112: 10.63 | AK112: 10.25 | AL112: 10.76 | AM112: 10.13 | AN112: 10.88 | AO112: 10.51 | AQ112: 0 | AR112: 0 | BC112: 108
B113: 109 | AD113: 109 | AE113: 26 | AF113: 10.33 | AG113: 12 | AH113: 10 | AI113: 10.38 | AJ113: 10.63 | AK113: 10.25 | AL113: 10.76 | AM113: 10.13 | AN113: 10.88 | AO113: 10.51 | AQ113: 0 | AR113: 0 | BC113: 109
B114: 110 | AD114: 110 | AE114: 26 | AF114: 10.33 | AG114: 12 | AH114: 10 | AI114: 10.38 | AJ114: 10.63 | AK114: 10.25 | AL114: 10.76 | AM114: 10.13 | AN114: 10.88 | AO114: 10.51 | AQ114: 0 | AR114: 0 | BC114: 110
B115: 111 | AD115: 111 | AE115: 26 | AF115: 10.33 | AG115: 12 | AH115: 10 | AI115: 10.38 | AJ115: 10.63 | AK115: 10.25 | AL115: 10.76 | AM115: 10.13 | AN115: 10.88 | AO115: 10.51 | AQ115: 0 | AR115: 0 | BC115: 111
B116: 112 | AD116: 112 | AE116: 26 | AF116: 10.33 | AG116: 12 | AH116: 10 | AI116: 10.38 | AJ116: 10.63 | AK116: 10.25 | AL116: 10.76 | AM116: 10.13 | AN116: 10.88 | AO116: 10.51 | AQ116: 0 | AR116: 0 | BC116: 112
B117: 113 | AD117: 113 | AE117: 26 | AF117: 10.33 | AG117: 12 | AH117: 10 | AI117: 10.38 | AJ117: 10.63 | AK117: 10.25 | AL117: 10.76 | AM117: 10.13 | AN117: 10.88 | AO117: 10.51 | AQ117: 0 | AR117: 0 | BC117: 113
B118: 114 | AD118: 114 | AE118: 26 | AF118: 10.33 | AG118: 12 | AH118: 10 | AI118: =AI117 -> 10.38 | AJ118: 10.63 | AK118: 10.25 | AL118: 10.76 | AM118: 10.13 | AN118: 10.88 | AO118: 10.51 | AQ118: 0 | AR118: 0 | BC118: 114
B119: 115 | AD119: 115 | AE119: 26 | AF119: 10.33 | AG119: 12 | AH119: 10 | AI119: 10.38 | AJ119: 10.63 | AK119: 10.25 | AL119: 10.76 | AM119: 10.13 | AN119: 10.88 | AO119: 10.51 | AQ119: 0 | AR119: 0 | BC119: 115
B120: 116 | AD120: 116 | AE120: 26 | AF120: 10.33 | AG120: 12 | AH120: 10 | AI120: 10.38 | AJ120: 10.63 | AK120: 10.25 | AL120: 10.76 | AM120: 10.13 | AN120: 10.88 | AO120: 10.51 | AQ120: 0 | AR120: 0 | BC120: 116
B121: 117 | AD121: 117 | AE121: 26 | AF121: 10.33 | AG121: 12 | AH121: 10 | AI121: 10.38 | AJ121: 10.63 | AK121: 10.25 | AL121: 10.76 | AM121: 10.13 | AN121: 10.88 | AO121: 10.51 | AQ121: 0 | AR121: 0 | BC121: 117
B122: 118 | AD122: 118 | AE122: 26 | AF122: 10.33 | AG122: 12 | AH122: 10 | AI122: 10.38 | AJ122: 10.63 | AK122: 10.25 | AL122: 10.76 | AM122: 10.13 | AN122: 10.88 | AO122: 10.51 | AQ122: 0 | AR122: 0 | BC122: 118
B123: 119 | AD123: 119 | AE123: 26 | AF123: 10.33 | AG123: 12 | AH123: 10 | AI123: 10.38 | AJ123: 10.63 | AK123: 10.25 | AL123: 10.76 | AM123: 10.13 | AN123: 10.88 | AO123: 10.51 | AQ123: 0 | AR123: 0 | BC123: 119
B124: 120 | AD124: 120 | AE124: 26 | AF124: 10.33 | AG124: 12 | AH124: 10 | AI124: 10.38 | AJ124: 10.63 | AK124: 10.25 | AL124: 10.76 | AM124: 10.13 | AN124: 10.88 | AO124: 10.51 | AQ124: 0 | AR124: 0 | BC124: 120
B125: 121 | AD125: 121 | AE125: 26 | AF125: 10.33 | AG125: 12 | AH125: 10 | AI125: 10.38 | AJ125: 10.63 | AK125: 10.25 | AL125: 10.76 | AM125: 10.13 | AN125: 10.88 | AO125: 10.51 | AQ125: 0 | AR125: 0 | BC125: 121
B126: 122 | AD126: 122 | AE126: 26 | AF126: 10.33 | AG126: 12 | AH126: 10 | AI126: 10.38 | AJ126: 10.63 | AK126: 10.25 | AL126: 10.76 | AM126: 10.13 | AN126: 10.88 | AO126: 10.51 | AQ126: 0 | AR126: 0 | BC126: 122
B127: 123 | AD127: 123 | AE127: 26 | AF127: 10.33 | AG127: 12 | AH127: 10 | AI127: 10.38 | AJ127: 10.63 | AK127: 10.25 | AL127: 10.76 | AM127: 10.13 | AN127: 10.88 | AO127: 10.51 | AQ127: 0 | AR127: 0 | BC127: 123
B128: 124 | AD128: 124 | AE128: 26 | AF128: 10.33 | AG128: 12 | AH128: 10 | AI128: 10.38 | AJ128: 10.63 | AK128: 10.25 | AL128: 10.76 | AM128: 10.13 | AN128: 10.88 | AO128: 10.51 | AQ128: 0 | AR128: 0 | BC128: 124
B129: 125 | AD129: 125 | AE129: 26 | AF129: 10.33 | AG129: 12 | AH129: 10 | AI129: 10.38 | AJ129: 10.63 | AK129: 10.25 | AL129: 10.76 | AM129: 10.13 | AN129: 10.88 | AO129: 10.51 | AQ129: 0 | AR129: 0 | BC129: 125
B130: 126 | AD130: 126 | AE130: 26 | AF130: 10.33 | AG130: 12 | AH130: 10 | AI130: 10.38 | AJ130: 10.63 | AK130: 10.25 | AL130: 10.76 | AM130: 10.13 | AN130: 10.88 | AO130: 10.51 | AQ130: 0 | AR130: 0 | BC130: 126
B131: 127 | AD131: 127 | AE131: 26 | AF131: 10.33 | AG131: 12 | AH131: 10 | AI131: 10.38 | AJ131: 10.63 | AK131: 10.25 | AL131: 10.76 | AM131: 10.13 | AN131: 10.88 | AO131: 10.51 | AQ131: 0 | AR131: 0 | BC131: 127
B132: 128 | AD132: 128 | AE132: 26 | AF132: 10.33 | AG132: 12 | AH132: 10 | AI132: 10.38 | AJ132: 10.63 | AK132: 10.25 | AL132: 10.76 | AM132: 10.13 | AN132: 10.88 | AO132: 10.51 | AQ132: 0 | AR132: 0 | BC132: 128
B133: 129 | AD133: 129 | AE133: 26 | AF133: 10.33 | AG133: =IF(C133<>"",OGW,AG132) -> 12 | AH133: =IF(C133<>"",UGW,AH132) -> 10 | AI133: 10.38 | AJ133: 10.63 | AK133: 10.25 | AL133: 10.76 | AM133: 10.13 | AN133: 10.88 | AO133: 10.51 | AQ133: =IF(AND(C133<>"",C133<UGW),1,0) -> 0 | AR133: =IF(AND(C133<>"",C133>OGW),1,0) -> 0 | BC133: 129 | BD133: =IF(C133="",NA(),SMALL(xi,BE133)) ->  | BF133: =IF(C133="","",NORMSDIST((BD133-Mittelwert)/Standardabweichung)) ->  | BG133: =IF(C133="","",1-BF133) ->  | BH133: =IF(C133="","",SMALL(BG,BE133)) ->  | BI133: =IF(C133="","",(2*BE133-1)*(LN(BH133)+LN(BF133))) ->  | BJ133: =IF(C133="",NA(),NORMSINV((BE133-0.3)/(Anzahl+0.4))) -> 
B134: 130 | AD134: 130 | AE134: 26 | AF134: 10.33 | AG134: 12 | AH134: 10 | AI134: =AI133 -> 10.38 | AJ134: 10.63 | AK134: 10.25 | AL134: 10.76 | AM134: 10.13 | AN134: 10.88 | AO134: 10.51 | AQ134: 0 | AR134: 0 | BC134: 130 | BE134: =IF(C134="","",1+BE133) -> 
B135: 131 | AD135: 131 | AE135: 26 | AF135: 10.33 | AG135: 12 | AH135: 10 | AI135: 10.38 | AJ135: 10.63 | AK135: 10.25 | AL135: 10.76 | AM135: 10.13 | AN135: 10.88 | AO135: 10.51 | AQ135: 0 | AR135: 0 | BC135: 131
B136: 132 | AD136: 132 | AE136: 26 | AF136: =IF(C136<>"",C136,AF135) -> 10.33 | AG136: 12 | AH136: 10 | AI136: 10.38 | AJ136: 10.63 | AK136: 10.25 | AL136: 10.76 | AM136: 10.13 | AN136: 10.88 | AO136: 10.51 | AQ136: 0 | AR136: 0 | BC136: 132
B137: 133 | AD137: 133 | AE137: =IF((Anzahl>AD137),AD137,Anzahl) -> 26 | AF137: 10.33 | AG137: 12 | AH137: 10 | AI137: 10.38 | AJ137: 10.63 | AK137: 10.25 | AL137: 10.76 | AM137: 10.13 | AN137: 10.88 | AO137: 10.51 | AQ137: 0 | AR137: 0 | BC137: 133
B138: 134 | AD138: 134 | AE138: 26 | AF138: 10.33 | AG138: 12 | AH138: 10 | AI138: 10.38 | AJ138: 10.63 | AK138: 10.25 | AL138: 10.76 | AM138: 10.13 | AN138: 10.88 | AO138: 10.51 | AQ138: 0 | AR138: 0 | BC138: 134
B139: 135 | AD139: 135 | AE139: 26 | AF139: 10.33 | AG139: 12 | AH139: 10 | AI139: 10.38 | AJ139: 10.63 | AK139: 10.25 | AL139: 10.76 | AM139: 10.13 | AN139: 10.88 | AO139: 10.51 | AQ139: 0 | AR139: 0 | BC139: 135
B140: 136 | AD140: 136 | AE140: 26 | AF140: 10.33 | AG140: 12 | AH140: 10 | AI140: 10.38 | AJ140: 10.63 | AK140: 10.25 | AL140: 10.76 | AM140: 10.13 | AN140: 10.88 | AO140: 10.51 | AQ140: 0 | AR140: 0 | BC140: 136
B141: 137 | AD141: 137 | AE141: 26 | AF141: 10.33 | AG141: 12 | AH141: 10 | AI141: 10.38 | AJ141: 10.63 | AK141: 10.25 | AL141: 10.76 | AM141: 10.13 | AN141: 10.88 | AO141: 10.51 | AQ141: 0 | AR141: 0 | BC141: 137
B142: 138 | AD142: 138 | AE142: 26 | AF142: 10.33 | AG142: 12 | AH142: 10 | AI142: 10.38 | AJ142: 10.63 | AK142: 10.25 | AL142: 10.76 | AM142: 10.13 | AN142: 10.88 | AO142: 10.51 | AQ142: 0 | AR142: 0 | BC142: 138
B143: 139 | AD143: 139 | AE143: 26 | AF143: 10.33 | AG143: 12 | AH143: 10 | AI143: 10.38 | AJ143: 10.63 | AK143: 10.25 | AL143: 10.76 | AM143: 10.13 | AN143: 10.88 | AO143: 10.51 | AQ143: 0 | AR143: 0 | BC143: 139
B144: 140 | AD144: 140 | AE144: 26 | AF144: 10.33 | AG144: 12 | AH144: 10 | AI144: 10.38 | AJ144: 10.63 | AK144: 10.25 | AL144: 10.76 | AM144: 10.13 | AN144: 10.88 | AO144: 10.51 | AQ144: 0 | AR144: 0 | BC144: 140
B145: 141 | AD145: 141 | AE145: 26 | AF145: 10.33 | AG145: 12 | AH145: 10 | AI145: 10.38 | AJ145: 10.63 | AK145: 10.25 | AL145: 10.76 | AM145: 10.13 | AN145: 10.88 | AO145: 10.51 | AQ145: 0 | AR145: 0 | BC145: 141
B146: 142 | AD146: 142 | AE146: 26 | AF146: 10.33 | AG146: 12 | AH146: 10 | AI146: 10.38 | AJ146: 10.63 | AK146: 10.25 | AL146: 10.76 | AM146: 10.13 | AN146: 10.88 | AO146: 10.51 | AQ146: 0 | AR146: 0 | BC146: 142
B147: 143 | AD147: 143 | AE147: 26 | AF147: 10.33 | AG147: 12 | AH147: 10 | AI147: 10.38 | AJ147: 10.63 | AK147: 10.25 | AL147: 10.76 | AM147: 10.13 | AN147: 10.88 | AO147: 10.51 | AQ147: 0 | AR147: 0 | BC147: 143
B148: 144 | AD148: 144 | AE148: 26 | AF148: 10.33 | AG148: 12 | AH148: 10 | AI148: 10.38 | AJ148: 10.63 | AK148: 10.25 | AL148: 10.76 | AM148: 10.13 | AN148: 10.88 | AO148: 10.51 | AQ148: 0 | AR148: 0 | BC148: 144
B149: 145 | AD149: 145 | AE149: 26 | AF149: 10.33 | AG149: 12 | AH149: 10 | AI149: 10.38 | AJ149: 10.63 | AK149: 10.25 | AL149: 10.76 | AM149: 10.13 | AN149: 10.88 | AO149: 10.51 | AQ149: 0 | AR149: 0 | BC149: 145
B150: 146 | AD150: 146 | AE150: 26 | AF150: 10.33 | AG150: 12 | AH150: 10 | AI150: =AI149 -> 10.38 | AJ150: 10.63 | AK150: 10.25 | AL150: 10.76 | AM150: 10.13 | AN150: 10.88 | AO150: 10.51 | AQ150: 0 | AR150: 0 | BC150: 146
B151: 147 | AD151: 147 | AE151: 26 | AF151: 10.33 | AG151: 12 | AH151: 10 | AI151: 10.38 | AJ151: 10.63 | AK151: 10.25 | AL151: 10.76 | AM151: 10.13 | AN151: 10.88 | AO151: 10.51 | AQ151: 0 | AR151: 0 | BC151: 147
B152: 148 | AD152: 148 | AE152: 26 | AF152: 10.33 | AG152: 12 | AH152: 10 | AI152: 10.38 | AJ152: 10.63 | AK152: 10.25 | AL152: 10.76 | AM152: 10.13 | AN152: 10.88 | AO152: 10.51 | AQ152: 0 | AR152: 0 | BC152: 148
B153: 149 | AD153: 149 | AE153: 26 | AF153: 10.33 | AG153: 12 | AH153: 10 | AI153: 10.38 | AJ153: 10.63 | AK153: 10.25 | AL153: 10.76 | AM153: 10.13 | AN153: 10.88 | AO153: 10.51 | AQ153: 0 | AR153: 0 | BC153: 149
B154: 150 | AD154: 150 | AE154: 26 | AF154: 10.33 | AG154: 12 | AH154: 10 | AI154: 10.38 | AJ154: 10.63 | AK154: 10.25 | AL154: 10.76 | AM154: 10.13 | AN154: 10.88 | AO154: 10.51 | AQ154: 0 | AR154: 0 | BC154: 150
B155: 151 | C155: =IF(L5="","",L5) ->  | AD155: 151 | AE155: 26 | AF155: 10.33 | AG155: 12 | AH155: 10 | AI155: 10.38 | AJ155: 10.63 | AK155: 10.25 | AL155: 10.76 | AM155: 10.13 | AN155: 10.88 | AO155: 10.51 | AQ155: 0 | AR155: 0 | BC155: 151
B156: 152 | C156: =IF(L6="","",L6) ->  | AD156: 152 | AE156: 26 | AF156: 10.33 | AG156: 12 | AH156: 10 | AI156: 10.38 | AJ156: 10.63 | AK156: 10.25 | AL156: 10.76 | AM156: 10.13 | AN156: 10.88 | AO156: 10.51 | AQ156: 0 | AR156: 0 | BC156: 152
B157: 153 | AD157: 153 | AE157: 26 | AF157: 10.33 | AG157: 12 | AH157: 10 | AI157: 10.38 | AJ157: 10.63 | AK157: 10.25 | AL157: 10.76 | AM157: 10.13 | AN157: 10.88 | AO157: 10.51 | AQ157: 0 | AR157: 0 | BC157: 153
B158: 154 | AD158: 154 | AE158: 26 | AF158: 10.33 | AG158: 12 | AH158: 10 | AI158: 10.38 | AJ158: 10.63 | AK158: 10.25 | AL158: 10.76 | AM158: 10.13 | AN158: 10.88 | AO158: 10.51 | AQ158: 0 | AR158: 0 | BC158: 154
B159: 155 | AD159: 155 | AE159: 26 | AF159: 10.33 | AG159: 12 | AH159: 10 | AI159: 10.38 | AJ159: 10.63 | AK159: 10.25 | AL159: 10.76 | AM159: 10.13 | AN159: 10.88 | AO159: 10.51 | AQ159: 0 | AR159: 0 | BC159: 155
B160: 156 | AD160: 156 | AE160: 26 | AF160: 10.33 | AG160: 12 | AH160: 10 | AI160: 10.38 | AJ160: 10.63 | AK160: 10.25 | AL160: 10.76 | AM160: 10.13 | AN160: 10.88 | AO160: 10.51 | AQ160: 0 | AR160: 0 | BC160: 156
B161: 157 | AD161: 157 | AE161: 26 | AF161: 10.33 | AG161: 12 | AH161: 10 | AI161: 10.38 | AJ161: 10.63 | AK161: 10.25 | AL161: 10.76 | AM161: 10.13 | AN161: 10.88 | AO161: 10.51 | AQ161: 0 | AR161: 0 | BC161: 157
B162: 158 | AD162: 158 | AE162: 26 | AF162: 10.33 | AG162: 12 | AH162: 10 | AI162: 10.38 | AJ162: 10.63 | AK162: 10.25 | AL162: 10.76 | AM162: 10.13 | AN162: 10.88 | AO162: 10.51 | AQ162: 0 | AR162: 0 | BC162: 158
B163: 159 | AD163: 159 | AE163: 26 | AF163: 10.33 | AG163: 12 | AH163: 10 | AI163: 10.38 | AJ163: 10.63 | AK163: 10.25 | AL163: 10.76 | AM163: 10.13 | AN163: 10.88 | AO163: 10.51 | AQ163: 0 | AR163: 0 | BC163: 159
B164: 160 | AD164: 160 | AE164: 26 | AF164: 10.33 | AG164: 12 | AH164: 10 | AI164: 10.38 | AJ164: 10.63 | AK164: 10.25 | AL164: 10.76 | AM164: 10.13 | AN164: 10.88 | AO164: 10.51 | AQ164: 0 | AR164: 0 | BC164: 160
B165: 161 | AD165: 161 | AE165: 26 | AF165: 10.33 | AG165: =IF(C165<>"",OGW,AG164) -> 12 | AH165: =IF(C165<>"",UGW,AH164) -> 10 | AI165: 10.38 | AJ165: 10.63 | AK165: 10.25 | AL165: 10.76 | AM165: 10.13 | AN165: 10.88 | AO165: 10.51 | AQ165: =IF(AND(C165<>"",C165<UGW),1,0) -> 0 | AR165: =IF(AND(C165<>"",C165>OGW),1,0) -> 0 | BC165: 161 | BD165: =IF(C165="",NA(),SMALL(xi,BE165)) ->  | BF165: =IF(C165="","",NORMSDIST((BD165-Mittelwert)/Standardabweichung)) ->  | BG165: =IF(C165="","",1-BF165) ->  | BH165: =IF(C165="","",SMALL(BG,BE165)) ->  | BI165: =IF(C165="","",(2*BE165-1)*(LN(BH165)+LN(BF165))) ->  | BJ165: =IF(C165="",NA(),NORMSINV((BE165-0.3)/(Anzahl+0.4))) -> 
B166: 162 | AD166: 162 | AE166: 26 | AF166: 10.33 | AG166: 12 | AH166: 10 | AI166: =AI165 -> 10.38 | AJ166: 10.63 | AK166: 10.25 | AL166: 10.76 | AM166: 10.13 | AN166: 10.88 | AO166: 10.51 | AQ166: 0 | AR166: 0 | BC166: 162 | BE166: =IF(C166="","",1+BE165) -> 
B167: 163 | AD167: 163 | AE167: 26 | AF167: 10.33 | AG167: 12 | AH167: 10 | AI167: 10.38 | AJ167: 10.63 | AK167: 10.25 | AL167: 10.76 | AM167: 10.13 | AN167: 10.88 | AO167: 10.51 | AQ167: 0 | AR167: 0 | BC167: 163
B168: 164 | AD168: 164 | AE168: 26 | AF168: 10.33 | AG168: 12 | AH168: 10 | AI168: 10.38 | AJ168: 10.63 | AK168: 10.25 | AL168: 10.76 | AM168: 10.13 | AN168: 10.88 | AO168: 10.51 | AQ168: 0 | AR168: 0 | BC168: 164
B169: 165 | AD169: 165 | AE169: =IF((Anzahl>AD169),AD169,Anzahl) -> 26 | AF169: 10.33 | AG169: 12 | AH169: 10 | AI169: 10.38 | AJ169: 10.63 | AK169: 10.25 | AL169: 10.76 | AM169: 10.13 | AN169: 10.88 | AO169: 10.51 | AQ169: 0 | AR169: 0 | BC169: 165
B170: 166 | AD170: 166 | AE170: 26 | AF170: 10.33 | AG170: 12 | AH170: 10 | AI170: 10.38 | AJ170: 10.63 | AK170: 10.25 | AL170: 10.76 | AM170: 10.13 | AN170: 10.88 | AO170: 10.51 | AQ170: 0 | AR170: 0 | BC170: 166
B171: 167 | AD171: 167 | AE171: 26 | AF171: 10.33 | AG171: 12 | AH171: 10 | AI171: 10.38 | AJ171: 10.63 | AK171: 10.25 | AL171: 10.76 | AM171: 10.13 | AN171: 10.88 | AO171: 10.51 | AQ171: 0 | AR171: 0 | BC171: 167
B172: 168 | AD172: 168 | AE172: 26 | AF172: 10.33 | AG172: 12 | AH172: 10 | AI172: 10.38 | AJ172: 10.63 | AK172: 10.25 | AL172: 10.76 | AM172: 10.13 | AN172: 10.88 | AO172: 10.51 | AQ172: 0 | AR172: 0 | BC172: 168
B173: 169 | AD173: 169 | AE173: 26 | AF173: 10.33 | AG173: 12 | AH173: 10 | AI173: 10.38 | AJ173: 10.63 | AK173: 10.25 | AL173: 10.76 | AM173: 10.13 | AN173: 10.88 | AO173: 10.51 | AQ173: 0 | AR173: 0 | BC173: 169
B174: 170 | AD174: 170 | AE174: 26 | AF174: 10.33 | AG174: 12 | AH174: 10 | AI174: 10.38 | AJ174: 10.63 | AK174: 10.25 | AL174: 10.76 | AM174: 10.13 | AN174: 10.88 | AO174: 10.51 | AQ174: 0 | AR174: 0 | BC174: 170
B175: 171 | AD175: 171 | AE175: 26 | AF175: 10.33 | AG175: 12 | AH175: 10 | AI175: 10.38 | AJ175: 10.63 | AK175: 10.25 | AL175: 10.76 | AM175: 10.13 | AN175: 10.88 | AO175: 10.51 | AQ175: 0 | AR175: 0 | BC175: 171
B176: 172 | AD176: 172 | AE176: 26 | AF176: 10.33 | AG176: 12 | AH176: 10 | AI176: 10.38 | AJ176: 10.63 | AK176: 10.25 | AL176: 10.76 | AM176: 10.13 | AN176: 10.88 | AO176: 10.51 | AQ176: 0 | AR176: 0 | BC176: 172
B177: 173 | AD177: 173 | AE177: 26 | AF177: 10.33 | AG177: 12 | AH177: 10 | AI177: 10.38 | AJ177: 10.63 | AK177: 10.25 | AL177: 10.76 | AM177: 10.13 | AN177: 10.88 | AO177: 10.51 | AQ177: 0 | AR177: 0 | BC177: 173
B178: 174 | AD178: 174 | AE178: 26 | AF178: 10.33 | AG178: 12 | AH178: 10 | AI178: 10.38 | AJ178: 10.63 | AK178: 10.25 | AL178: 10.76 | AM178: 10.13 | AN178: 10.88 | AO178: 10.51 | AQ178: 0 | AR178: 0 | BC178: 174
B179: 175 | AD179: 175 | AE179: 26 | AF179: 10.33 | AG179: 12 | AH179: 10 | AI179: 10.38 | AJ179: 10.63 | AK179: 10.25 | AL179: 10.76 | AM179: 10.13 | AN179: 10.88 | AO179: 10.51 | AQ179: 0 | AR179: 0 | BC179: 175
B180: 176 | AD180: 176 | AE180: 26 | AF180: 10.33 | AG180: 12 | AH180: 10 | AI180: 10.38 | AJ180: 10.63 | AK180: 10.25 | AL180: 10.76 | AM180: 10.13 | AN180: 10.88 | AO180: 10.51 | AQ180: 0 | AR180: 0 | BC180: 176
B181: 177 | AD181: 177 | AE181: 26 | AF181: 10.33 | AG181: 12 | AH181: 10 | AI181: 10.38 | AJ181: 10.63 | AK181: 10.25 | AL181: 10.76 | AM181: 10.13 | AN181: 10.88 | AO181: 10.51 | AQ181: 0 | AR181: 0 | BC181: 177
B182: 178 | AD182: 178 | AE182: 26 | AF182: 10.33 | AG182: 12 | AH182: 10 | AI182: =AI181 -> 10.38 | AJ182: 10.63 | AK182: 10.25 | AL182: 10.76 | AM182: 10.13 | AN182: 10.88 | AO182: 10.51 | AQ182: 0 | AR182: 0 | BC182: 178
B183: 179 | AD183: 179 | AE183: 26 | AF183: 10.33 | AG183: 12 | AH183: 10 | AI183: 10.38 | AJ183: 10.63 | AK183: 10.25 | AL183: 10.76 | AM183: 10.13 | AN183: 10.88 | AO183: 10.51 | AQ183: 0 | AR183: 0 | BC183: 179
B184: 180 | AD184: 180 | AE184: 26 | AF184: 10.33 | AG184: 12 | AH184: 10 | AI184: 10.38 | AJ184: 10.63 | AK184: 10.25 | AL184: 10.76 | AM184: 10.13 | AN184: 10.88 | AO184: 10.51 | AQ184: 0 | AR184: 0 | BC184: 180
B185: 181 | AD185: 181 | AE185: 26 | AF185: 10.33 | AG185: 12 | AH185: 10 | AI185: 10.38 | AJ185: 10.63 | AK185: 10.25 | AL185: 10.76 | AM185: 10.13 | AN185: 10.88 | AO185: 10.51 | AQ185: 0 | AR185: 0 | BC185: 181
B186: 182 | AD186: 182 | AE186: 26 | AF186: 10.33 | AG186: 12 | AH186: 10 | AI186: 10.38 | AJ186: 10.63 | AK186: 10.25 | AL186: 10.76 | AM186: 10.13 | AN186: 10.88 | AO186: 10.51 | AQ186: 0 | AR186: 0 | BC186: 182
B187: 183 | AD187: 183 | AE187: 26 | AF187: 10.33 | AG187: 12 | AH187: 10 | AI187: 10.38 | AJ187: 10.63 | AK187: 10.25 | AL187: 10.76 | AM187: 10.13 | AN187: 10.88 | AO187: 10.51 | AQ187: 0 | AR187: 0 | BC187: 183
B188: 184 | AD188: 184 | AE188: 26 | AF188: 10.33 | AG188: 12 | AH188: 10 | AI188: 10.38 | AJ188: 10.63 | AK188: 10.25 | AL188: 10.76 | AM188: 10.13 | AN188: 10.88 | AO188: 10.51 | AQ188: 0 | AR188: 0 | BC188: 184
B189: 185 | AD189: 185 | AE189: 26 | AF189: 10.33 | AG189: 12 | AH189: 10 | AI189: 10.38 | AJ189: 10.63 | AK189: 10.25 | AL189: 10.76 | AM189: 10.13 | AN189: 10.88 | AO189: 10.51 | AQ189: 0 | AR189: 0 | BC189: 185
B190: 186 | AD190: 186 | AE190: 26 | AF190: 10.33 | AG190: 12 | AH190: 10 | AI190: 10.38 | AJ190: 10.63 | AK190: 10.25 | AL190: 10.76 | AM190: 10.13 | AN190: 10.88 | AO190: 10.51 | AQ190: 0 | AR190: 0 | BC190: 186
B191: 187 | AD191: 187 | AE191: 26 | AF191: 10.33 | AG191: 12 | AH191: 10 | AI191: 10.38 | AJ191: 10.63 | AK191: 10.25 | AL191: 10.76 | AM191: 10.13 | AN191: 10.88 | AO191: 10.51 | AQ191: 0 | AR191: 0 | BC191: 187
B192: 188 | AD192: 188 | AE192: 26 | AF192: 10.33 | AG192: 12 | AH192: 10 | AI192: 10.38 | AJ192: 10.63 | AK192: 10.25 | AL192: 10.76 | AM192: 10.13 | AN192: 10.88 | AO192: 10.51 | AQ192: 0 | AR192: 0 | BC192: 188
B193: 189 | AD193: 189 | AE193: 26 | AF193: 10.33 | AG193: 12 | AH193: 10 | AI193: 10.38 | AJ193: 10.63 | AK193: 10.25 | AL193: 10.76 | AM193: 10.13 | AN193: 10.88 | AO193: 10.51 | AQ193: 0 | AR193: 0 | BC193: 189
B194: 190 | AD194: 190 | AE194: 26 | AF194: 10.33 | AG194: 12 | AH194: 10 | AI194: 10.38 | AJ194: 10.63 | AK194: 10.25 | AL194: 10.76 | AM194: 10.13 | AN194: 10.88 | AO194: 10.51 | AQ194: 0 | AR194: 0 | BC194: 190
B195: 191 | AD195: 191 | AE195: 26 | AF195: 10.33 | AG195: 12 | AH195: 10 | AI195: 10.38 | AJ195: 10.63 | AK195: 10.25 | AL195: 10.76 | AM195: 10.13 | AN195: 10.88 | AO195: 10.51 | AQ195: 0 | AR195: 0 | BC195: 191
B196: 192 | AD196: 192 | AE196: 26 | AF196: 10.33 | AG196: 12 | AH196: 10 | AI196: 10.38 | AJ196: 10.63 | AK196: 10.25 | AL196: 10.76 | AM196: 10.13 | AN196: 10.88 | AO196: 10.51 | AQ196: 0 | AR196: 0 | BC196: 192
B197: 193 | AD197: 193 | AE197: 26 | AF197: 10.33 | AG197: =IF(C197<>"",OGW,AG196) -> 12 | AH197: =IF(C197<>"",UGW,AH196) -> 10 | AI197: 10.38 | AJ197: 10.63 | AK197: 10.25 | AL197: 10.76 | AM197: 10.13 | AN197: 10.88 | AO197: 10.51 | AQ197: =IF(AND(C197<>"",C197<UGW),1,0) -> 0 | AR197: =IF(AND(C197<>"",C197>OGW),1,0) -> 0 | BC197: 193 | BD197: =IF(C197="",NA(),SMALL(xi,BE197)) ->  | BF197: =IF(C197="","",NORMSDIST((BD197-Mittelwert)/Standardabweichung)) ->  | BG197: =IF(C197="","",1-BF197) ->  | BH197: =IF(C197="","",SMALL(BG,BE197)) ->  | BI197: =IF(C197="","",(2*BE197-1)*(LN(BH197)+LN(BF197))) ->  | BJ197: =IF(C197="",NA(),NORMSINV((BE197-0.3)/(Anzahl+0.4))) -> 
B198: 194 | AD198: 194 | AE198: 26 | AF198: 10.33 | AG198: 12 | AH198: 10 | AI198: =AI197 -> 10.38 | AJ198: 10.63 | AK198: 10.25 | AL198: 10.76 | AM198: 10.13 | AN198: 10.88 | AO198: 10.51 | AQ198: 0 | AR198: 0 | BC198: 194 | BE198: =IF(C198="","",1+BE197) -> 
B199: 195 | AD199: 195 | AE199: 26 | AF199: 10.33 | AG199: 12 | AH199: 10 | AI199: 10.38 | AJ199: 10.63 | AK199: 10.25 | AL199: 10.76 | AM199: 10.13 | AN199: 10.88 | AO199: 10.51 | AQ199: 0 | AR199: 0 | BC199: 195
B200: 196 | AD200: 196 | AE200: 26 | AF200: =IF(C200<>"",C200,AF199) -> 10.33 | AG200: 12 | AH200: 10 | AI200: 10.38 | AJ200: 10.63 | AK200: 10.25 | AL200: 10.76 | AM200: 10.13 | AN200: 10.88 | AO200: 10.51 | AQ200: 0 | AR200: 0 | BC200: 196
B201: 197 | AD201: 197 | AE201: =IF((Anzahl>AD201),AD201,Anzahl) -> 26 | AF201: 10.33 | AG201: 12 | AH201: 10 | AI201: 10.38 | AJ201: 10.63 | AK201: 10.25 | AL201: 10.76 | AM201: 10.13 | AN201: 10.88 | AO201: 10.51 | AQ201: 0 | AR201: 0 | BC201: 197
... 4 more rows
